Workbook

Sheet Splash
L7: DayTradingLife.com

Sheet Monte Carlo Simulator
B2: Details | I2: Trade System Expectancy - 'Monte Carlo' Simulator v1.01 | AA2: DayTradingLife.com. | AF2: traderdowboy@gmail.com | AK2: Current Date / Time: | AL2: =TEXT(NOW(),"dd/mm/yyyy hh:mm AM/PM") -> 10/05/2012 08:19 PM
C4: 1st: ENTER DETAILS IN YELLOW CELLS! | J4: Results After 500 Random Trades. | AG4: Results After 100 Simulated Trades
C5: NOTES | E5: CALCULATE | J5: Total Losing Trades | L5: =IF(COUNTA($F$6:$F$10)=5,COUNTIF($L$24:$L$523,"LOSS"),"") -> 228 | Z5: Total Winning Trades | AB5: =IF(COUNTA($F$6:$F$10)=5,COUNTIF($L$24:$L$523,"WIN"),"") -> 272 | AG5: Total Losing Trades | AH5: =IF(COUNTA($F$6:$F$10)=5,COUNTIF($L$24:$L$123,"LOSS"),"") -> 43 | AK5: Total Winning Trades | AL5: =IF(COUNTA($F$6:$F$10)=5,COUNTIF($L$24:$L$123,"WIN"),"") -> 57
C6: Starting Capital (£) | F6: 10000 | J6: Total Losses(£) | L6: =IF(COUNTA($F$6:$F$10)=5,SUMPRODUCT((L24:L523="LOSS")*((F25:F524)-(F24:F523)))-F10,"") -> -42083.76198 | Z6: Total Wins(£) | AB6: =IF(COUNTA($F$6:$F$10)=5,SUMPRODUCT((L24:L523="WIN")*((F25:F524)-(F24:F523)))-F10,"") -> 58021.00249 | AG6: Total Losses(£) | AH6: =IF(COUNTA($F$6:$F$10)=5,SUMPRODUCT((L24:L123="LOSS")*((F25:F124)-(F24:F123)))-F10,"") -> -5114.59978 | AK6: Total Wins(£) | AL6: =IF(COUNTA($F$6:$F$10)=5,SUMPRODUCT((L24:L123="WIN")*((F25:F124)-(F24:F123)))-F10,"") -> 7926.176464
C7: Risk (%) | F7: 0.01 | J7: Actual Losing(%) | L7: =IF(COUNTA($F$6:$F$10)=5,L5/(L5+AB5),"") -> 0.456 | Z7: Actual Win(%) | AB7: =IF(COUNTA($F$6:$F$10)=5,(COUNTIF($D$24:$D$523,"<" & $F$8)/500),"") -> 0.544 | AG7: Actual Losing(%) | AH7: =IF(COUNTA($F$6:$F$10)=5,AH5/(AH5+AL5),"") -> 0.43 | AK7: Actual Winning(%) | AL7: =IF(COUNTA($F$6:$F$10)=5,(COUNTIF($D$24:$D$123,"<" & $F$8)/100),"") -> 0.57
C8: Winning (%) | F8: 55 | J8: Average Trade Loss(£) | L8: =IF(COUNTA($F$6:$F$10)=5,(L6/L5),"") -> -184.5779034 | Z8: Average Trade Win(£) | AB8: =IF(COUNTA($F$6:$F$10)=5,(AB6/AB5),"") -> 213.3125092 | AG8: Average Trade Loss(£) | AH8: =IF(COUNTA($F$6:$F$10)=5,(AH6/AH5),"") -> -118.9441809 | AK8: Average Trade Win(£) | AL8: =IF(COUNTA($F$6:$F$10)=5,(AL6/AL5),"") -> 139.0557274
C9: Payoff Ratio OR R/R | F9: 1.2 | J9: Average Trade Loss(%) | L9: =IF(COUNTA($F$6:$F$10)=5,(L8/L6),"") -> 0.004385964912 | Z9: Average Trade Win(%) | AB9: =IF(COUNTA($F$6:$F$10)=5,(AB8/AB6),"") -> 0.003676470588 | AG9: Average Trade Loss(%) | AH9: =IF(COUNTA($F$6:$F$10)=5,(AH8/AH6),"") -> 0.02325581395 | AK9: Average Trade Win(%) | AL9: =IF(COUNTA($F$6:$F$10)=5,(AL8/AL6),"") -> 0.01754385965
C10: Commission (£) | F10: 0 | J10: Most Consec. Losses | L10: =IF(COUNTA($F$6:$F$10)=5,MAX(FREQUENCY(IF(L24:L523="LOSS",ROW(L24:L523)),IF(L24:L523<>"LOSS",ROW(L24:L523)))),"") -> 10 | M10: =IF(N(L10),ADDRESS(MATCH(L10,COUNTIF(OFFSET(L24:L523,ROW(INDIRECT("1:"&ROWS(L24:L523)-L10+1))-1,0,L10),"LOSS"),0)+ROW(L24)-1,COLUMN(L24),4)&":"&ADDRESS(MATCH(L10,COUNTIF(OFFSET(L24:L523,ROW(INDIRECT("1:"&ROWS(L24:L523)-L10+1))-1,0,L10),"LOSS"),0)+L10-1+ROW(L24)-1,COLUMN(L24),4),"") -> L420:L429 | Z10: Most Consec. Wins | AB10: =IF(COUNTA($F$6:$F$10)=5,MAX(FREQUENCY(IF(L24:L523="WIN",ROW(L24:L523)),IF(L24:L523<>"WIN",ROW(L24:L523)))),"") -> 10 | AC10: =IF(N(AB10),ADDRESS(MATCH(AB10,COUNTIF(OFFSET(L24:L523,ROW(INDIRECT("1:"&ROWS(L24:L523)-AB10+1))-1,0,AB10),"WIN"),0)+ROW(L24)-1,COLUMN(L24),4)&":"&ADDRESS(MATCH(AB10,COUNTIF(OFFSET(L24:L523,ROW(INDIRECT("1:"&ROWS(L24:L523)-AB10+1))-1,0,AB10),"WIN"),0)+AB10-1+ROW(L24)-1,COLUMN(L24),4),"") -> L256:L265 | AG10: Most Consec. Losses | AH10: =IF(COUNTA($F$6:$F$10)=5,MAX(FREQUENCY(IF(L24:L123="LOSS",ROW(L24:L123)),IF(L24:L124<>"LOSS",ROW(L24:L123)))),"") -> 4 | AI10: =IF(N(AH10),ADDRESS(MATCH(AH10,COUNTIF(OFFSET(L24:L123,ROW(INDIRECT("1:"&ROWS(L24:L123)-AH10+1))-1,0,AH10),"LOSS"),0)+ROW(L24)-1,COLUMN(L24),4)&":"&ADDRESS(MATCH(AH10,COUNTIF(OFFSET(L24:L123,ROW(INDIRECT("1:"&ROWS(L24:L123)-AH10+1))-1,0,AH10),"LOSS"),0)+AH10-1+ROW(L24)-1,COLUMN(L24),4),"") -> L120:L123 | AK10: Most Consec. Wins | AL10: =IF(COUNTA($F$6:$F$10)=5,MAX(FREQUENCY(IF(L24:L123="WIN",ROW(L24:L123)),IF(L24:L123<>"WIN",ROW(L24:L123)))),"") -> 6 | AM10: =IF(N(AL10),ADDRESS(MATCH(AL10,COUNTIF(OFFSET(L24:L123,ROW(INDIRECT("1:"&ROWS(L24:L123)-AL10+1))-1,0,AL10),"WIN"),0)+ROW(L24)-1,COLUMN(L24),4)&":"&ADDRESS(MATCH(AL10,COUNTIF(OFFSET(L24:L123,ROW(INDIRECT("1:"&ROWS(L24:L123)-AL10+1))-1,0,AL10),"WIN"),0)+AL10-1+ROW(L24)-1,COLUMN(L24),4),"") -> L52:L57
J11: Most Consec. Losses(£) | L11: =IF(COUNTA($F$6:$F$10)=5,SUM(OFFSET(INDIRECT(M10),,-1,L10)),"") -> -2350.373872 | Z11: Most Consec. Wins(£) | AB11: =IF(COUNTA($F$6:$F$10)=5,SUM(OFFSET(INDIRECT(AC10),,-1,AB10)),"") -> 2096.3297 | AG11: Most Consec. Losses(£) | AH11: =IF(COUNTA($F$6:$F$10)=5,SUM(OFFSET(INDIRECT(AI10),,-1,AH10)),"") -> -525.5354325 | AK11: Most Consec. Wins(£) | AL11: =IF(COUNTA($F$6:$F$10)=5,SUM(OFFSET(INDIRECT(AM10),,-1,AL10)),"") -> 778.644303
J12: Largest Losing Streak(£) | L12: =IF(COUNTA($F$6:$F$10)=5,MIN(X24:X523),"") -> -2350.373872 | Z12: Largest Winning Streak(£) | AB12: =IF(COUNTA($F$6:$F$10)=5,MAX(W24:W523),"") -> 2096.3297 | AG12: Largest Losing Streak(£) | AH12: =IF(COUNTA($F$6:$F$10)=5,MIN(X24:X123),"") -> -525.5354325 | AK12: Largest Winning Streak(£) | AL12: =IF(COUNTA($F$6:$F$10)=5,MAX(W24:W123),"") -> 859.8340206
C13: Statistical Probabilty Of Consec. Wins & Losses.
C14: No.Trades | D14: Con.Losses | F14: Con. Wins | J14: Largest Losing Trade(£) | L14: =IF(M14="","","K"& 23+MATCH(M14,IF(L24:L523="LOSS",K24:K523),0)) -> K508 | M14: =IF(COUNTA($F$6:$F$10)<5, "", MIN(IF(L24:L523 = "LOSS", K24:K523))) -> -266.9861595 | Z14: Largest Winning Trade(£) | AB14: =IF(AC14="","","K"& 23+MATCH(AC14,IF(L24:L523="WIN",K24:K523),0)) -> K507 | AC14: =IF(COUNTA($F$6:$F$10)<5, "", MAX(IF(L24:L523 = "WIN", K24:K523))) -> 316.5843789 | AG14: Largest Losing Trade(£) | AH14: =IF(AI14="","","K"& 23+MATCH(AI14,IF(L24:L123="LOSS",K24:K123),0)) -> K120 | AI14: =IF(COUNTA($F$6:$F$10)<5, "", MIN(IF(L24:L123 = "LOSS", K24:K123))) -> -133.3711212 | AK14: Largest Winning Trade(£) | AL14: =IF(AM14="","","K"& 23+MATCH(AM14,IF(L24:L123="WIN",K24:K123),0)) -> K119 | AM14: =IF(COUNTA($F$6:$F$10)<5, "", MAX(IF(L24:L123 = "WIN", K24:K123))) -> 158.1475745
D15: =IF(COUNTA($C$15,$F$8)=2,LN(C15)/-LN(D16),"") ->  | F15: =IF(COUNTA($C$15,$F$8)=2,LN(C15)/-LN(F16),"") ->  | J15: Lowest Equity Low(£) | L15: =IF(COUNTA($F$6:$F$10)=5,MIN($F$24:$F$523),"") -> 9819.42588 | Z15: Peak Gain(£) | AB15: =IF(COUNTA($F$6:$F$10)=5,MAX($F$24:$F$523),"") -> 26698.61595 | AG15: Lowest Equity Low(£) | AH15: =IF(COUNTA($F$6:$F$10)=5,MIN($F$24:$F$123),"") -> 9819.42588 | AK15: Peak Gain(£) | AL15: =IF(COUNTA($F$6:$F$10)=5,MAX($F$24:$F$123),"") -> 13337.11212
D16: =(100-F8)/100 -> 0.45 | F16: =1-D16 -> 0.55
C18: 100 | D18: =IF(COUNTBLANK($F$6:$F$10),"",LN(C18)/-LN(D16)) -> 5.767220789 | F18: =IF(COUNTBLANK($F$6:$F$10),"",LN(C18)/-LN(F16)) -> 7.70305314 | J18: Ending Capital (£) | L18: =IF(COUNTBLANK($F$6:$F$10),"",(F523+K523)) -> 25937.24052 | Z18: Nett Profit / Loss (%) | AB18: =IF(COUNTBLANK($F$6:$F$10),"",(L18-F6)/F6) -> 1.593724052 | AG18: Ending Capital (£) | AH18: =IF(COUNTBLANK($F$6:$F$10),"",(F124)) -> 12811.57668 | AK18: Nett Profit / Loss (%) | AL18: =IF(COUNTBLANK($F$6:$F$10),"",(AH18-F6)/F6) -> 0.2811576684
C20: 500 | D20: =IF(COUNTBLANK($F$6:$F$10),"",LN(C20)/-LN(D16)) -> 7.782777959 | F20: =IF(COUNTBLANK($F$6:$F$10),"",LN(C20)/-LN(F16)) -> 10.39515468 | J20: Nett Profit / Loss (£) | L20: =IF(COUNTBLANK($F$6:$F$10),"",(L18-F6)) -> 15937.24052 | Z20: Drawdown Recovery (%) | AB20: =IF(AND(COUNTBLANK($F$6:$F$10)>0,L18=""),"",IF(OR(L18<0,L18>=F6),"NO % DATA IS REQUIRED",IF(AND(L18>0,L18<F6),(1/(L18/F6)-1),))) -> NO % DATA IS REQUIRED | AG20: Nett Profit / Loss (£) | AH20: =IF(COUNTBLANK($F$6:$F$10),"",(AH18-F6)) -> 2811.576684 | AK20: Drawdown Recovery (%) | AL20: =IF(AND(COUNTBLANK($F$6:$F$10)>0,AH18=""),"",IF(OR(AH18<0,AH18>=F6),"NO % DATA IS REQUIRED",IF(AND(AH18>0,AH18<F6),(1/(AH18/F6)-1),))) -> NO % DATA IS REQUIRED
B23: Row & Trade | D23: Monte Carlo | F23: Capital (£) | H23: =IF(COUNTA($F$6:$F$10)=5, CONCATENATE("Risk ", F7*100,"%"),"Risk %") -> Risk 1% | K23: Win/Loss (£) | L23: Outcome (L) | M23: Capital +/-% | N23: Count | O23: Position | P23: Repeats | Q23: WIN | R23: LOSS | S23: Win Label Pos. | T23: WIN % | U23: LOSS Label Pos | V23: LOSS % | W23: Winning Streaks £'s | X23: Losing Streaks £'s
B24: Row 24 (1) | D24: =IF(COUNTA($F$6:$F$10)=5,100*RAND(),"") -> 59.60061596 | F24: =IF(COUNTBLANK($F$6:$F$10),"",$F$6) -> 10000 | H24: =IF(COUNTBLANK($F$6:$F$10),"",F24*$F$7) -> 100 | K24: =IF(COUNTBLANK($F$6:$F$10),"", IF(L24="win", H24*$F$9-$F$10, IF(L24="loss", -H24-$F$10))) -> -100 | L24: =IF(D24="","",IF(D24<$F$8,"WIN","LOSS")) -> LOSS | M24: =IF(COUNTA($F$6:$F$10)=5,(F25-F24)/F24,"") -> -0.01 | N24: 1 | O24: =IF(N24=1,IF(N25=1,"last","new"),IF(N25=1,"last","middle")) -> last | P24: 25 | Q24: =COUNTIFS(Outcome,$Q$23,position,"last",count,P24) -> 0 | R24: =SUMPRODUCT((Outcome=$R$23)*(position="last")*(count=P24)) -> 0 | S24: 0.5 | T24: =IF(Q24=0,"",Q24*$P24/500) ->  | U24: =S24+1 -> 1.5 | V24: =IF(R24=0,"",R24*$P24/500) ->  | W24: =IF(AND(L24="WIN",L25<>"WIN"),SUMIF(L24:L$24,"WIN",K24:K$24)-SUM(W$23:W23),"") ->  | X24: =IF(AND(L24="LOSS",L25<>"LOSS"),SUMIF(L$24:L24,"LOSS",K$24:K24)-SUM(X$23:X23),"") -> -100
B25: Row 25 (2) | D25: =IF(COUNTA($F$6:$F$10)=5,100*RAND(),"") -> 18.87938161 | F25: =IF(COUNTBLANK($F$6:$F$10),"",IF(D24<$F$8,(1+$F$7*$F$9)*F24-$F$10,(1-$F$7)*F24-$F$10)) -> 9900 | H25: =IF(COUNTBLANK($F$6:$F$10),"",F25*$F$7) -> 99 | K25: =IF(COUNTBLANK($F$6:$F$10),"", IF(L25="win", H25*$F$9-$F$10, IF(L25="loss", -H25-$F$10))) -> 118.8 | L25: =IF(D25="","",IF(D25<$F$8,"WIN","LOSS")) -> WIN | M25: =IF(COUNTA($F$6:$F$10)=5,(F26-F24)/F24,"") -> 0.00188 | N25: =IF(L25=L24,N24+1,1) -> 1 | O25: =IF(N25=1,IF(N26=1,"last","new"),IF(N26=1,"last","middle")) -> last | P25: 24 | Q25: =COUNTIFS(Outcome,$Q$23,position,"last",count,P25) -> 0 | R25: 0 | S25: 2.5 | U25: 3.5 | W25: =IF(AND(L25="WIN",L26<>"WIN"),SUMIF(L$24:L25,"WIN",K$24:K25)-SUM(W$23:W24),"") -> 118.8 | X25: =IF(AND(L25="LOSS",L26<>"LOSS"),SUMIF(L$24:L25,"LOSS",K$24:K25)-SUM(X$23:X24),"") -> 
B26: Row 26 (3) | D26: 92.56211449 | F26: =IF(COUNTBLANK($F$6:$F$10),"",IF(D25<$F$8,(1+$F$7*$F$9)*F25-$F$10,(1-$F$7)*F25-$F$10)) -> 10018.8 | H26: 100.188 | K26: =IF(COUNTBLANK($F$6:$F$10),"", IF(L26="win", H26*$F$9-$F$10, IF(L26="loss", -H26-$F$10))) -> -100.188 | L26: LOSS | M26: =IF(COUNTA($F$6:$F$10)=5,(F27-F24)/F24,"") -> -0.0081388 | N26: 1 | O26: new | P26: 23 | Q26: 0 | R26: 0 | S26: 4.5 | U26: 5.5 | W26: =IF(AND(L26="WIN",L27<>"WIN"),SUMIF(L$24:L26,"WIN",K$24:K26)-SUM(W$23:W25),"") ->  | X26: =IF(AND(L26="LOSS",L27<>"LOSS"),SUMIF(L$24:L26,"LOSS",K$24:K26)-SUM(X$23:X25),"") -> 
B27: Row 27 (4) | D27: 70.23149361 | F27: 9918.612 | H27: 99.18612 | K27: -99.18612 | L27: LOSS | M27: =IF(COUNTA($F$6:$F$10)=5,(F28-F24)/F24,"") -> -0.018057412 | N27: 2 | O27: last | P27: 22 | Q27: 0 | R27: 0 | S27: 6.5 | U27: 7.5 | W27: =IF(AND(L27="WIN",L28<>"WIN"),SUMIF(L$24:L27,"WIN",K$24:K27)-SUM(W$23:W26),"") ->  | X27: =IF(AND(L27="LOSS",L28<>"LOSS"),SUMIF(L$24:L27,"LOSS",K$24:K27)-SUM(X$23:X26),"") -> -199.37412
B28: Row 28 (5) | D28: 34.31985323 | F28: 9819.42588 | H28: 98.1942588 | K28: 117.8331106 | L28: WIN | M28: =IF(COUNTA($F$6:$F$10)=5,(F29-F24)/F24,"") -> -0.006274100944 | N28: 1 | O28: new | P28: 21 | Q28: 0 | R28: 0 | S28: 8.5 | U28: 9.5 | W28: =IF(AND(L28="WIN",L29<>"WIN"),SUMIF(L$24:L28,"WIN",K$24:K28)-SUM(W$23:W27),"") ->  | X28: =IF(AND(L28="LOSS",L29<>"LOSS"),SUMIF(L$24:L28,"LOSS",K$24:K28)-SUM(X$23:X27),"") -> 
B29: Row 29 (6) | D29: 38.03156543 | F29: 9937.258991 | H29: 99.37258991 | K29: 119.2471079 | L29: WIN | M29: =IF(COUNTA($F$6:$F$10)=5,(F30-F24)/F24,"") -> 0.005650609845 | N29: 2 | O29: middle | P29: 20 | Q29: 0 | R29: 0 | S29: 10.5 | U29: 11.5 | W29: =IF(AND(L29="WIN",L30<>"WIN"),SUMIF(L$24:L29,"WIN",K$24:K29)-SUM(W$23:W28),"") ->  | X29: =IF(AND(L29="LOSS",L30<>"LOSS"),SUMIF(L$24:L29,"LOSS",K$24:K29)-SUM(X$23:X28),"") -> 
B30: Row 30 (7) | D30: 9.103890115 | F30: 10056.5061 | H30: 100.565061 | K30: 120.6780732 | L30: WIN | M30: =IF(COUNTA($F$6:$F$10)=5,(F31-F24)/F24,"") -> 0.01771841716 | N30: 3 | O30: middle | P30: 19 | Q30: 0 | R30: 0 | S30: 12.5 | U30: 13.5 | W30: =IF(AND(L30="WIN",L31<>"WIN"),SUMIF(L$24:L30,"WIN",K$24:K30)-SUM(W$23:W29),"") ->  | X30: =IF(AND(L30="LOSS",L31<>"LOSS"),SUMIF(L$24:L30,"LOSS",K$24:K30)-SUM(X$23:X29),"") -> 
B31: Row 31 (8) | D31: 17.37840351 | F31: 10177.18417 | H31: 101.7718417 | K31: 122.1262101 | L31: WIN | M31: =IF(COUNTA($F$6:$F$10)=5,(F32-F24)/F24,"") -> 0.02993103817 | N31: 4 | O31: middle | P31: 18 | Q31: 0 | R31: 0 | S31: 14.5 | T31: =IF(Q31=0,"",Q31*$P31/500) ->  | U31: =S31+1 -> 15.5 | W31: =IF(AND(L31="WIN",L32<>"WIN"),SUMIF(L$24:L31,"WIN",K$24:K31)-SUM(W$23:W30),"") ->  | X31: =IF(AND(L31="LOSS",L32<>"LOSS"),SUMIF(L$24:L31,"LOSS",K$24:K31)-SUM(X$23:X30),"") -> 
B32: Row 32 (9) | D32: 9.302940281 | F32: 10299.31038 | H32: 102.9931038 | K32: 123.5917246 | L32: WIN | M32: =IF(COUNTA($F$6:$F$10)=5,(F33-F24)/F24,"") -> 0.04229021063 | N32: 5 | O32: last | P32: 17 | Q32: 0 | R32: 0 | S32: 16.5 | U32: =S32+1 -> 17.5 | W32: =IF(AND(L32="WIN",L33<>"WIN"),SUMIF(L$24:L32,"WIN",K$24:K32)-SUM(W$23:W31),"") -> 603.4762263 | X32: =IF(AND(L32="LOSS",L33<>"LOSS"),SUMIF(L$24:L32,"LOSS",K$24:K32)-SUM(X$23:X31),"") -> 
B33: Row 33 (10) | D33: 80.0308749 | F33: 10422.90211 | H33: 104.2290211 | K33: -104.2290211 | L33: LOSS | M33: =IF(COUNTA($F$6:$F$10)=5,(F34-F24)/F24,"") -> 0.03186730852 | N33: 1 | O33: last | P33: 16 | Q33: 0 | R33: 0 | S33: 18.5 | U33: 19.5 | W33: =IF(AND(L33="WIN",L34<>"WIN"),SUMIF(L$24:L33,"WIN",K$24:K33)-SUM(W$23:W32),"") ->  | X33: =IF(AND(L33="LOSS",L34<>"LOSS"),SUMIF(L$24:L33,"LOSS",K$24:K33)-SUM(X$23:X32),"") -> -104.2290211
B34: Row 34 (11) | D34: 50.2599552 | F34: 10318.67309 | H34: 103.1867309 | K34: 123.824077 | L34: WIN | M34: =IF(COUNTA($F$6:$F$10)=5,(F35-F24)/F24,"") -> 0.04424971622 | N34: 1 | O34: last | P34: 15 | Q34: 0 | R34: 0 | S34: 20.5 | U34: 21.5 | W34: =IF(AND(L34="WIN",L35<>"WIN"),SUMIF(L$24:L34,"WIN",K$24:K34)-SUM(W$23:W33),"") -> 123.824077 | X34: =IF(AND(L34="LOSS",L35<>"LOSS"),SUMIF(L$24:L34,"LOSS",K$24:K34)-SUM(X$23:X33),"") -> 
B35: Row 35 (12) | D35: 55.62200024 | F35: 10442.49716 | H35: 104.4249716 | K35: -104.4249716 | L35: LOSS | M35: =IF(COUNTA($F$6:$F$10)=5,(F36-F24)/F24,"") -> 0.03380721906 | N35: 1 | O35: last | P35: 14 | Q35: 0 | R35: 0 | S35: 22.5 | U35: 23.5 | W35: =IF(AND(L35="WIN",L36<>"WIN"),SUMIF(L$24:L35,"WIN",K$24:K35)-SUM(W$23:W34),"") ->  | X35: =IF(AND(L35="LOSS",L36<>"LOSS"),SUMIF(L$24:L35,"LOSS",K$24:K35)-SUM(X$23:X34),"") -> -104.4249716
B36: Row 36 (13) | D36: 16.43131559 | F36: 10338.07219 | H36: 103.3807219 | K36: 124.0568663 | L36: WIN | M36: =IF(COUNTA($F$6:$F$10)=5,(F37-F24)/F24,"") -> 0.04621290569 | N36: 1 | O36: last | P36: 13 | Q36: 0 | R36: 0 | S36: 24.5 | U36: 25.5 | W36: =IF(AND(L36="WIN",L37<>"WIN"),SUMIF(L$24:L36,"WIN",K$24:K36)-SUM(W$23:W35),"") -> 124.0568663 | X36: =IF(AND(L36="LOSS",L37<>"LOSS"),SUMIF(L$24:L36,"LOSS",K$24:K36)-SUM(X$23:X35),"") -> 
B37: Row 37 (14) | D37: 72.54756761 | F37: 10462.12906 | H37: 104.6212906 | K37: -104.6212906 | L37: LOSS | M37: =IF(COUNTA($F$6:$F$10)=5,(F38-F24)/F24,"") -> 0.03575077663 | N37: 1 | O37: last | P37: 12 | Q37: 0 | R37: 0 | S37: 26.5 | U37: 27.5 | W37: =IF(AND(L37="WIN",L38<>"WIN"),SUMIF(L$24:L37,"WIN",K$24:K37)-SUM(W$23:W36),"") ->  | X37: =IF(AND(L37="LOSS",L38<>"LOSS"),SUMIF(L$24:L37,"LOSS",K$24:K37)-SUM(X$23:X36),"") -> -104.6212906
B38: Row 38 (15) | D38: 12.56424439 | F38: 10357.50777 | H38: 103.5750777 | K38: 124.2900932 | L38: WIN | M38: =IF(COUNTA($F$6:$F$10)=5,(F39-F24)/F24,"") -> 0.04817978595 | N38: 1 | O38: last | P38: 11 | Q38: 0 | R38: 0 | S38: 28.5 | U38: 29.5 | W38: =IF(AND(L38="WIN",L39<>"WIN"),SUMIF(L$24:L38,"WIN",K$24:K38)-SUM(W$23:W37),"") -> 124.2900932 | X38: =IF(AND(L38="LOSS",L39<>"LOSS"),SUMIF(L$24:L38,"LOSS",K$24:K38)-SUM(X$23:X37),"") -> 
B39: Row 39 (16) | D39: 64.45853632 | F39: 10481.79786 | H39: 104.8179786 | K39: -104.8179786 | L39: LOSS | M39: =IF(COUNTA($F$6:$F$10)=5,(F40-F24)/F24,"") -> 0.03769798809 | N39: 1 | O39: new | P39: 10 | Q39: 1 | R39: 1 | S39: 30.5 | T39: 0.02 | U39: 31.5 | V39: 0.02 | W39: =IF(AND(L39="WIN",L40<>"WIN"),SUMIF(L$24:L39,"WIN",K$24:K39)-SUM(W$23:W38),"") ->  | X39: =IF(AND(L39="LOSS",L40<>"LOSS"),SUMIF(L$24:L39,"LOSS",K$24:K39)-SUM(X$23:X38),"") -> 
B40: Row 40 (17) | D40: 58.17953863 | F40: 10376.97988 | H40: 103.7697988 | K40: -103.7697988 | L40: LOSS | M40: =IF(COUNTA($F$6:$F$10)=5,(F41-F24)/F24,"") -> 0.02732100821 | N40: 2 | O40: last | P40: 9 | Q40: 0 | R40: 0 | S40: 32.5 | U40: 33.5 | W40: =IF(AND(L40="WIN",L41<>"WIN"),SUMIF(L$24:L40,"WIN",K$24:K40)-SUM(W$23:W39),"") ->  | X40: =IF(AND(L40="LOSS",L41<>"LOSS"),SUMIF(L$24:L40,"LOSS",K$24:K40)-SUM(X$23:X39),"") -> -208.5877774
B41: Row 41 (18) | D41: 48.97305643 | F41: 10273.21008 | H41: 102.7321008 | K41: 123.278521 | L41: WIN | M41: =IF(COUNTA($F$6:$F$10)=5,(F42-F24)/F24,"") -> 0.03964886031 | N41: 1 | O41: last | P41: 8 | Q41: 0 | R41: 0 | S41: 34.5 | U41: =S41+1 -> 35.5 | W41: =IF(AND(L41="WIN",L42<>"WIN"),SUMIF(L$24:L41,"WIN",K$24:K41)-SUM(W$23:W40),"") -> 123.278521 | X41: =IF(AND(L41="LOSS",L42<>"LOSS"),SUMIF(L$24:L41,"LOSS",K$24:K41)-SUM(X$23:X40),"") -> 
B42: Row 42 (19) | D42: 64.07302589 | F42: 10396.4886 | H42: 103.964886 | K42: -103.964886 | L42: LOSS | M42: =IF(COUNTA($F$6:$F$10)=5,(F43-F24)/F24,"") -> 0.02925237171 | N42: 1 | O42: last | P42: 7 | Q42: 2 | R42: 0 | S42: 36.5 | T42: 0.028 | U42: =S42+1 -> 37.5 | W42: =IF(AND(L42="WIN",L43<>"WIN"),SUMIF(L$24:L42,"WIN",K$24:K42)-SUM(W$23:W41),"") ->  | X42: =IF(AND(L42="LOSS",L43<>"LOSS"),SUMIF(L$24:L42,"LOSS",K$24:K42)-SUM(X$23:X41),"") -> -103.964886
B43: Row 43 (20) | D43: 23.97110361 | F43: 10292.52372 | H43: 102.9252372 | K43: 123.5102846 | L43: WIN | M43: =IF(COUNTA($F$6:$F$10)=5,(F44-F24)/F24,"") -> 0.04160340017 | N43: 1 | O43: last | P43: 6 | Q43: 4 | R43: 0 | S43: 38.5 | T43: 0.048 | U43: 39.5 | W43: =IF(AND(L43="WIN",L44<>"WIN"),SUMIF(L$24:L43,"WIN",K$24:K43)-SUM(W$23:W42),"") -> 123.5102846 | X43: =IF(AND(L43="LOSS",L44<>"LOSS"),SUMIF(L$24:L43,"LOSS",K$24:K43)-SUM(X$23:X42),"") -> 
B44: Row 44 (21) | D44: 62.10340012 | F44: 10416.034 | H44: 104.16034 | K44: -104.16034 | L44: LOSS | M44: =IF(COUNTA($F$6:$F$10)=5,(F45-F24)/F24,"") -> 0.03118736617 | N44: 1 | O44: last | P44: 5 | Q44: 7 | R44: 3 | S44: 40.5 | T44: 0.07 | U44: =S44+1 -> 41.5 | V44: 0.03 | W44: =IF(AND(L44="WIN",L45<>"WIN"),SUMIF(L$24:L44,"WIN",K$24:K44)-SUM(W$23:W43),"") ->  | X44: =IF(AND(L44="LOSS",L45<>"LOSS"),SUMIF(L$24:L44,"LOSS",K$24:K44)-SUM(X$23:X43),"") -> -104.16034
B45: Row 45 (22) | D45: 11.5421137 | F45: 10311.87366 | H45: 103.1187366 | K45: 123.7424839 | L45: WIN | M45: =IF(COUNTA($F$6:$F$10)=5,(F46-F24)/F24,"") -> 0.04356161456 | N45: 1 | O45: new | P45: 4 | Q45: 6 | R45: 8 | S45: 42.5 | T45: 0.048 | U45: =S45+1 -> 43.5 | V45: 0.064 | W45: =IF(AND(L45="WIN",L46<>"WIN"),SUMIF(L$24:L45,"WIN",K$24:K45)-SUM(W$23:W44),"") ->  | X45: =IF(AND(L45="LOSS",L46<>"LOSS"),SUMIF(L$24:L45,"LOSS",K$24:K45)-SUM(X$23:X44),"") -> 
B46: Row 46 (23) | D46: 39.81474027 | F46: 10435.61615 | H46: 104.3561615 | K46: 125.2273937 | L46: WIN | M46: =IF(COUNTA($F$6:$F$10)=5,(F47-F24)/F24,"") -> 0.05608435393 | N46: 2 | O46: middle | P46: 3 | Q46: 19 | R46: 10 | S46: 44.5 | T46: 0.114 | U46: 45.5 | V46: 0.06 | W46: =IF(AND(L46="WIN",L47<>"WIN"),SUMIF(L$24:L46,"WIN",K$24:K46)-SUM(W$23:W45),"") ->  | X46: =IF(AND(L46="LOSS",L47<>"LOSS"),SUMIF(L$24:L46,"LOSS",K$24:K46)-SUM(X$23:X45),"") -> 
B47: Row 47 (24) | D47: 25.97823072 | F47: 10560.84354 | H47: 105.6084354 | K47: 126.7301225 | L47: WIN | M47: =IF(COUNTA($F$6:$F$10)=5,(F48-F24)/F24,"") -> 0.06875736618 | N47: 3 | O47: last | P47: 2 | Q47: 26 | R47: 42 | S47: 46.5 | T47: 0.104 | U47: 47.5 | V47: 0.168 | W47: =IF(AND(L47="WIN",L48<>"WIN"),SUMIF(L$24:L47,"WIN",K$24:K47)-SUM(W$23:W46),"") -> 375.7000002 | X47: =IF(AND(L47="LOSS",L48<>"LOSS"),SUMIF(L$24:L47,"LOSS",K$24:K47)-SUM(X$23:X46),"") -> 
B48: Row 48 (25) | D48: 68.18129938 | F48: 10687.57366 | H48: 106.8757366 | K48: -106.8757366 | L48: LOSS | M48: =IF(COUNTA($F$6:$F$10)=5,(F49-F24)/F24,"") -> 0.05806979252 | N48: 1 | O48: new | P48: 1 | Q48: 55 | R48: 57 | S48: 48.5 | T48: =IF(Q48=0,"",Q48*$P48/500) -> 0.11 | U48: 49.5 | V48: =IF(R48=0,"",R48*$P48/500) -> 0.114 | W48: =IF(AND(L48="WIN",L49<>"WIN"),SUMIF(L$24:L48,"WIN",K$24:K48)-SUM(W$23:W47),"") ->  | X48: =IF(AND(L48="LOSS",L49<>"LOSS"),SUMIF(L$24:L48,"LOSS",K$24:K48)-SUM(X$23:X47),"") -> 
B49: Row 49 (26) | D49: 99.77389231 | F49: 10580.69793 | H49: 105.8069793 | K49: -105.8069793 | L49: LOSS | M49: =IF(COUNTA($F$6:$F$10)=5,(F50-F24)/F24,"") -> 0.04748909459 | N49: 2 | O49: last | W49: =IF(AND(L49="WIN",L50<>"WIN"),SUMIF(L$24:L49,"WIN",K$24:K49)-SUM(W$23:W48),"") ->  | X49: =IF(AND(L49="LOSS",L50<>"LOSS"),SUMIF(L$24:L49,"LOSS",K$24:K49)-SUM(X$23:X48),"") -> -212.6827159
B50: Row 50 (27) | D50: 8.952008603 | F50: 10474.89095 | H50: 104.7489095 | K50: 125.6986914 | L50: WIN | M50: =IF(COUNTA($F$6:$F$10)=5,(F51-F24)/F24,"") -> 0.06005896373 | N50: 1 | O50: last | W50: =IF(AND(L50="WIN",L51<>"WIN"),SUMIF(L$24:L50,"WIN",K$24:K50)-SUM(W$23:W49),"") -> 125.6986914 | X50: =IF(AND(L50="LOSS",L51<>"LOSS"),SUMIF(L$24:L50,"LOSS",K$24:K50)-SUM(X$23:X49),"") -> 
B51: Row 51 (28) | D51: 65.05220977 | F51: 10600.58964 | H51: 106.0058964 | K51: -106.0058964 | L51: LOSS | M51: =IF(COUNTA($F$6:$F$10)=5,(F52-F24)/F24,"") -> 0.04945837409 | N51: 1 | O51: last | W51: =IF(AND(L51="WIN",L52<>"WIN"),SUMIF(L$24:L51,"WIN",K$24:K51)-SUM(W$23:W50),"") ->  | X51: =IF(AND(L51="LOSS",L52<>"LOSS"),SUMIF(L$24:L51,"LOSS",K$24:K51)-SUM(X$23:X50),"") -> -106.0058964
B52: Row 52 (29) | D52: 23.51715266 | F52: 10494.58374 | H52: 104.9458374 | K52: 125.9350049 | L52: WIN | M52: =IF(COUNTA($F$6:$F$10)=5,(F53-F24)/F24,"") -> 0.06205187458 | N52: 1 | O52: new | W52: =IF(AND(L52="WIN",L53<>"WIN"),SUMIF(L$24:L52,"WIN",K$24:K52)-SUM(W$23:W51),"") ->  | X52: =IF(AND(L52="LOSS",L53<>"LOSS"),SUMIF(L$24:L52,"LOSS",K$24:K52)-SUM(X$23:X51),"") -> 
B53: Row 53 (30) | D53: 23.63075563 | F53: 10620.51875 | H53: 106.2051875 | K53: 127.4462249 | L53: WIN | M53: =IF(COUNTA($F$6:$F$10)=5,(F54-F24)/F24,"") -> 0.07479649708 | N53: 2 | O53: middle | W53: =IF(AND(L53="WIN",L54<>"WIN"),SUMIF(L$24:L53,"WIN",K$24:K53)-SUM(W$23:W52),"") ->  | X53: =IF(AND(L53="LOSS",L54<>"LOSS"),SUMIF(L$24:L53,"LOSS",K$24:K53)-SUM(X$23:X52),"") -> 
B54: Row 54 (31) | D54: 34.21153864 | F54: 10747.96497 | H54: 107.4796497 | K54: 128.9755796 | L54: WIN | M54: =IF(COUNTA($F$6:$F$10)=5,(F55-F24)/F24,"") -> 0.08769405504 | N54: 3 | O54: middle | W54: =IF(AND(L54="WIN",L55<>"WIN"),SUMIF(L$24:L54,"WIN",K$24:K54)-SUM(W$23:W53),"") ->  | X54: =IF(AND(L54="LOSS",L55<>"LOSS"),SUMIF(L$24:L54,"LOSS",K$24:K54)-SUM(X$23:X53),"") -> 
B55: Row 55 (32) | D55: 45.76720985 | F55: 10876.94055 | H55: 108.7694055 | K55: 130.5232866 | L55: WIN | M55: =IF(COUNTA($F$6:$F$10)=5,(F56-F24)/F24,"") -> 0.1007463837 | N55: 4 | O55: middle | W55: =IF(AND(L55="WIN",L56<>"WIN"),SUMIF(L$24:L55,"WIN",K$24:K55)-SUM(W$23:W54),"") ->  | X55: =IF(AND(L55="LOSS",L56<>"LOSS"),SUMIF(L$24:L55,"LOSS",K$24:K55)-SUM(X$23:X54),"") -> 
B56: Row 56 (33) | D56: 5.946062127 | F56: 11007.46384 | H56: 110.0746384 | K56: 132.089566 | L56: WIN | M56: =IF(COUNTA($F$6:$F$10)=5,(F57-F24)/F24,"") -> 0.1139553403 | N56: 5 | O56: middle | W56: =IF(AND(L56="WIN",L57<>"WIN"),SUMIF(L$24:L56,"WIN",K$24:K56)-SUM(W$23:W55),"") ->  | X56: =IF(AND(L56="LOSS",L57<>"LOSS"),SUMIF(L$24:L56,"LOSS",K$24:K56)-SUM(X$23:X55),"") -> 
B57: Row 57 (34) | D57: 30.78288106 | F57: 11139.5534 | H57: 111.395534 | K57: 133.6746408 | L57: WIN | M57: =IF(COUNTA($F$6:$F$10)=5,(F58-F24)/F24,"") -> 0.1273228044 | N57: 6 | O57: last | W57: =IF(AND(L57="WIN",L58<>"WIN"),SUMIF(L$24:L57,"WIN",K$24:K57)-SUM(W$23:W56),"") -> 778.644303 | X57: =IF(AND(L57="LOSS",L58<>"LOSS"),SUMIF(L$24:L57,"LOSS",K$24:K57)-SUM(X$23:X56),"") -> 
B58: Row 58 (35) | D58: 85.78064201 | F58: 11273.22804 | H58: 112.7322804 | K58: -112.7322804 | L58: LOSS | M58: =IF(COUNTA($F$6:$F$10)=5,(F59-F24)/F24,"") -> 0.1160495763 | N58: 1 | O58: last | W58: =IF(AND(L58="WIN",L59<>"WIN"),SUMIF(L$24:L58,"WIN",K$24:K58)-SUM(W$23:W57),"") ->  | X58: =IF(AND(L58="LOSS",L59<>"LOSS"),SUMIF(L$24:L58,"LOSS",K$24:K58)-SUM(X$23:X57),"") -> -112.7322804
B59: Row 59 (36) | D59: 2.246744844 | F59: 11160.49576 | H59: 111.6049576 | K59: 133.9259492 | L59: WIN | M59: =IF(COUNTA($F$6:$F$10)=5,(F60-F24)/F24,"") -> 0.1294421713 | N59: 1 | O59: new | W59: =IF(AND(L59="WIN",L60<>"WIN"),SUMIF(L$24:L59,"WIN",K$24:K59)-SUM(W$23:W58),"") ->  | X59: =IF(AND(L59="LOSS",L60<>"LOSS"),SUMIF(L$24:L59,"LOSS",K$24:K59)-SUM(X$23:X58),"") -> 
B60: Row 60 (37) | D60: 36.9641859 | F60: 11294.42171 | H60: 112.9442171 | K60: 135.5330606 | L60: WIN | M60: =IF(COUNTA($F$6:$F$10)=5,(F61-F24)/F24,"") -> 0.1429954773 | N60: 2 | O60: middle | W60: =IF(AND(L60="WIN",L61<>"WIN"),SUMIF(L$24:L60,"WIN",K$24:K60)-SUM(W$23:W59),"") ->  | X60: =IF(AND(L60="LOSS",L61<>"LOSS"),SUMIF(L$24:L60,"LOSS",K$24:K60)-SUM(X$23:X59),"") -> 
B61: Row 61 (38) | D61: 0.104206519 | F61: 11429.95477 | H61: 114.2995477 | K61: 137.1594573 | L61: WIN | M61: =IF(COUNTA($F$6:$F$10)=5,(F62-F24)/F24,"") -> 0.156711423 | N61: 3 | O61: middle | W61: =IF(AND(L61="WIN",L62<>"WIN"),SUMIF(L$24:L61,"WIN",K$24:K61)-SUM(W$23:W60),"") ->  | X61: =IF(AND(L61="LOSS",L62<>"LOSS"),SUMIF(L$24:L61,"LOSS",K$24:K61)-SUM(X$23:X60),"") -> 
B62: Row 62 (39) | D62: 43.66066499 | F62: 11567.11423 | H62: 115.6711423 | K62: 138.8053708 | L62: WIN | M62: =IF(COUNTA($F$6:$F$10)=5,(F63-F24)/F24,"") -> 0.1705919601 | N62: 4 | O62: last | W62: =IF(AND(L62="WIN",L63<>"WIN"),SUMIF(L$24:L62,"WIN",K$24:K62)-SUM(W$23:W61),"") -> 545.4238378 | X62: =IF(AND(L62="LOSS",L63<>"LOSS"),SUMIF(L$24:L62,"LOSS",K$24:K62)-SUM(X$23:X61),"") -> 
B63: Row 63 (40) | D63: 68.31949481 | F63: 11705.9196 | H63: 117.059196 | K63: -117.059196 | L63: LOSS | M63: =IF(COUNTA($F$6:$F$10)=5,(F64-F24)/F24,"") -> 0.1588860405 | N63: 1 | O63: last | W63: =IF(AND(L63="WIN",L64<>"WIN"),SUMIF(L$24:L63,"WIN",K$24:K63)-SUM(W$23:W62),"") ->  | X63: =IF(AND(L63="LOSS",L64<>"LOSS"),SUMIF(L$24:L63,"LOSS",K$24:K63)-SUM(X$23:X62),"") -> -117.059196
B64: Row 64 (41) | D64: 23.52744204 | F64: 11588.86041 | H64: 115.8886041 | K64: 139.0663249 | L64: WIN | M64: =IF(COUNTA($F$6:$F$10)=5,(F65-F24)/F24,"") -> 0.172792673 | N64: 1 | O64: new | W64: =IF(AND(L64="WIN",L65<>"WIN"),SUMIF(L$24:L64,"WIN",K$24:K64)-SUM(W$23:W63),"") ->  | X64: =IF(AND(L64="LOSS",L65<>"LOSS"),SUMIF(L$24:L64,"LOSS",K$24:K64)-SUM(X$23:X63),"") -> 
B65: Row 65 (42) | D65: 4.733544228 | F65: 11727.92673 | H65: 117.2792673 | K65: 140.7351208 | L65: WIN | M65: =IF(COUNTA($F$6:$F$10)=5,(F66-F24)/F24,"") -> 0.1868661851 | N65: 2 | O65: middle | W65: =IF(AND(L65="WIN",L66<>"WIN"),SUMIF(L$24:L65,"WIN",K$24:K65)-SUM(W$23:W64),"") ->  | X65: =IF(AND(L65="LOSS",L66<>"LOSS"),SUMIF(L$24:L65,"LOSS",K$24:K65)-SUM(X$23:X64),"") -> 
B66: Row 66 (43) | D66: 41.87735904 | F66: 11868.66185 | H66: 118.6866185 | K66: 142.4239422 | L66: WIN | M66: =IF(COUNTA($F$6:$F$10)=5,(F67-F24)/F24,"") -> 0.2011085793 | N66: 3 | O66: middle | W66: =IF(AND(L66="WIN",L67<>"WIN"),SUMIF(L$24:L66,"WIN",K$24:K66)-SUM(W$23:W65),"") ->  | X66: =IF(AND(L66="LOSS",L67<>"LOSS"),SUMIF(L$24:L66,"LOSS",K$24:K66)-SUM(X$23:X65),"") -> 
B67: Row 67 (44) | D67: 11.05385642 | F67: 12011.08579 | H67: 120.1108579 | K67: 144.1330295 | L67: WIN | M67: =IF(COUNTA($F$6:$F$10)=5,(F68-F24)/F24,"") -> 0.2155218823 | N67: 4 | O67: middle | W67: =IF(AND(L67="WIN",L68<>"WIN"),SUMIF(L$24:L67,"WIN",K$24:K67)-SUM(W$23:W66),"") ->  | X67: =IF(AND(L67="LOSS",L68<>"LOSS"),SUMIF(L$24:L67,"LOSS",K$24:K67)-SUM(X$23:X66),"") -> 
B68: Row 68 (45) | D68: 8.419499645 | F68: 12155.21882 | H68: 121.5521882 | K68: 145.8626259 | L68: WIN | M68: =IF(COUNTA($F$6:$F$10)=5,(F69-F24)/F24,"") -> 0.2301081448 | N68: 5 | O68: middle | W68: =IF(AND(L68="WIN",L69<>"WIN"),SUMIF(L$24:L68,"WIN",K$24:K68)-SUM(W$23:W67),"") ->  | X68: =IF(AND(L68="LOSS",L69<>"LOSS"),SUMIF(L$24:L68,"LOSS",K$24:K68)-SUM(X$23:X67),"") -> 
B69: Row 69 (46) | D69: 52.91086673 | F69: 12301.08145 | H69: 123.0108145 | K69: 147.6129774 | L69: WIN | M69: =IF(COUNTA($F$6:$F$10)=5,(F70-F24)/F24,"") -> 0.2448694426 | N69: 6 | O69: last | W69: =IF(AND(L69="WIN",L70<>"WIN"),SUMIF(L$24:L69,"WIN",K$24:K69)-SUM(W$23:W68),"") -> 859.8340206 | X69: =IF(AND(L69="LOSS",L70<>"LOSS"),SUMIF(L$24:L69,"LOSS",K$24:K69)-SUM(X$23:X68),"") -> 
B70: Row 70 (47) | D70: 98.41276412 | F70: 12448.69443 | H70: 124.4869443 | K70: -124.4869443 | L70: LOSS | M70: =IF(COUNTA($F$6:$F$10)=5,(F71-F24)/F24,"") -> 0.2324207482 | N70: 1 | O70: new | W70: =IF(AND(L70="WIN",L71<>"WIN"),SUMIF(L$24:L70,"WIN",K$24:K70)-SUM(W$23:W69),"") ->  | X70: =IF(AND(L70="LOSS",L71<>"LOSS"),SUMIF(L$24:L70,"LOSS",K$24:K70)-SUM(X$23:X69),"") -> 
B71: Row 71 (48) | D71: 56.01007875 | F71: 12324.20748 | H71: 123.2420748 | K71: -123.2420748 | L71: LOSS | M71: =IF(COUNTA($F$6:$F$10)=5,(F72-F24)/F24,"") -> 0.2200965407 | N71: 2 | O71: last | W71: =IF(AND(L71="WIN",L72<>"WIN"),SUMIF(L$24:L71,"WIN",K$24:K71)-SUM(W$23:W70),"") ->  | X71: =IF(AND(L71="LOSS",L72<>"LOSS"),SUMIF(L$24:L71,"LOSS",K$24:K71)-SUM(X$23:X70),"") -> -247.7290191
B72: Row 72 (49) | D72: 18.30423743 | F72: 12200.96541 | H72: 122.0096541 | K72: 146.4115849 | L72: WIN | M72: =IF(COUNTA($F$6:$F$10)=5,(F73-F24)/F24,"") -> 0.2347376992 | N72: 1 | O72: last | W72: =IF(AND(L72="WIN",L73<>"WIN"),SUMIF(L$24:L72,"WIN",K$24:K72)-SUM(W$23:W71),"") -> 146.4115849 | X72: =IF(AND(L72="LOSS",L73<>"LOSS"),SUMIF(L$24:L72,"LOSS",K$24:K72)-SUM(X$23:X71),"") -> 
B73: Row 73 (50) | D73: 86.45903212 | F73: 12347.37699 | H73: 123.4737699 | K73: -123.4737699 | L73: LOSS | M73: =IF(COUNTA($F$6:$F$10)=5,(F74-F24)/F24,"") -> 0.2223903222 | N73: 1 | O73: last | W73: =IF(AND(L73="WIN",L74<>"WIN"),SUMIF(L$24:L73,"WIN",K$24:K73)-SUM(W$23:W72),"") ->  | X73: =IF(AND(L73="LOSS",L74<>"LOSS"),SUMIF(L$24:L73,"LOSS",K$24:K73)-SUM(X$23:X72),"") -> -123.4737699
B74: Row 74 (51) | D74: 52.87125698 | F74: 12223.90322 | H74: 122.2390322 | K74: 146.6868387 | L74: WIN | M74: =IF(COUNTA($F$6:$F$10)=5,(F75-F24)/F24,"") -> 0.237059006 | N74: 1 | O74: last | W74: =IF(AND(L74="WIN",L75<>"WIN"),SUMIF(L$24:L74,"WIN",K$24:K74)-SUM(W$23:W73),"") -> 146.6868387 | X74: =IF(AND(L74="LOSS",L75<>"LOSS"),SUMIF(L$24:L74,"LOSS",K$24:K74)-SUM(X$23:X73),"") -> 
B75: Row 75 (52) | D75: 72.36816072 | F75: 12370.59006 | H75: 123.7059006 | K75: -123.7059006 | L75: LOSS | M75: =IF(COUNTA($F$6:$F$10)=5,(F76-F24)/F24,"") -> 0.224688416 | N75: 1 | O75: new | W75: =IF(AND(L75="WIN",L76<>"WIN"),SUMIF(L$24:L75,"WIN",K$24:K75)-SUM(W$23:W74),"") ->  | X75: =IF(AND(L75="LOSS",L76<>"LOSS"),SUMIF(L$24:L75,"LOSS",K$24:K75)-SUM(X$23:X74),"") -> 
B76: Row 76 (53) | D76: 69.4667941 | F76: 12246.88416 | H76: 122.4688416 | K76: -122.4688416 | L76: LOSS | M76: =IF(COUNTA($F$6:$F$10)=5,(F77-F24)/F24,"") -> 0.2124415318 | N76: 2 | O76: last | W76: =IF(AND(L76="WIN",L77<>"WIN"),SUMIF(L$24:L76,"WIN",K$24:K76)-SUM(W$23:W75),"") ->  | X76: =IF(AND(L76="LOSS",L77<>"LOSS"),SUMIF(L$24:L76,"LOSS",K$24:K76)-SUM(X$23:X75),"") -> -246.1747422
B77: Row 77 (54) | D77: 49.15123672 | F77: 12124.41532 | H77: 121.2441532 | K77: 145.4929838 | L77: WIN | M77: =IF(COUNTA($F$6:$F$10)=5,(F78-F24)/F24,"") -> 0.2269908302 | N77: 1 | O77: new | W77: =IF(AND(L77="WIN",L78<>"WIN"),SUMIF(L$24:L77,"WIN",K$24:K77)-SUM(W$23:W76),"") ->  | X77: =IF(AND(L77="LOSS",L78<>"LOSS"),SUMIF(L$24:L77,"LOSS",K$24:K77)-SUM(X$23:X76),"") -> 
B78: Row 78 (55) | D78: 17.23551337 | F78: 12269.9083 | H78: 122.699083 | K78: 147.2388996 | L78: WIN | M78: =IF(COUNTA($F$6:$F$10)=5,(F79-F24)/F24,"") -> 0.2417147202 | N78: 2 | O78: middle | W78: =IF(AND(L78="WIN",L79<>"WIN"),SUMIF(L$24:L78,"WIN",K$24:K78)-SUM(W$23:W77),"") ->  | X78: =IF(AND(L78="LOSS",L79<>"LOSS"),SUMIF(L$24:L78,"LOSS",K$24:K78)-SUM(X$23:X77),"") -> 
B79: Row 79 (56) | D79: 53.56058591 | F79: 12417.1472 | H79: 124.171472 | K79: 149.0057664 | L79: WIN | M79: =IF(COUNTA($F$6:$F$10)=5,(F80-F24)/F24,"") -> 0.2566152968 | N79: 3 | O79: last | W79: =IF(AND(L79="WIN",L80<>"WIN"),SUMIF(L$24:L79,"WIN",K$24:K79)-SUM(W$23:W78),"") -> 441.7376499 | X79: =IF(AND(L79="LOSS",L80<>"LOSS"),SUMIF(L$24:L79,"LOSS",K$24:K79)-SUM(X$23:X78),"") -> 
B80: Row 80 (57) | D80: 97.61408998 | F80: 12566.15297 | H80: 125.6615297 | K80: -125.6615297 | L80: LOSS | M80: =IF(COUNTA($F$6:$F$10)=5,(F81-F24)/F24,"") -> 0.2440491438 | N80: 1 | O80: last | W80: =IF(AND(L80="WIN",L81<>"WIN"),SUMIF(L$24:L80,"WIN",K$24:K80)-SUM(W$23:W79),"") ->  | X80: =IF(AND(L80="LOSS",L81<>"LOSS"),SUMIF(L$24:L80,"LOSS",K$24:K80)-SUM(X$23:X79),"") -> -125.6615297
B81: Row 81 (58) | D81: 14.52065598 | F81: 12440.49144 | H81: 124.4049144 | K81: 149.2858973 | L81: WIN | M81: =IF(COUNTA($F$6:$F$10)=5,(F82-F24)/F24,"") -> 0.2589777336 | N81: 1 | O81: new | W81: =IF(AND(L81="WIN",L82<>"WIN"),SUMIF(L$24:L81,"WIN",K$24:K81)-SUM(W$23:W80),"") ->  | X81: =IF(AND(L81="LOSS",L82<>"LOSS"),SUMIF(L$24:L81,"LOSS",K$24:K81)-SUM(X$23:X80),"") -> 
B82: Row 82 (59) | D82: 25.76048169 | F82: 12589.77734 | H82: 125.8977734 | K82: 151.077328 | L82: WIN | M82: =IF(COUNTA($F$6:$F$10)=5,(F83-F24)/F24,"") -> 0.2740854664 | N82: 2 | O82: last | W82: =IF(AND(L82="WIN",L83<>"WIN"),SUMIF(L$24:L82,"WIN",K$24:K82)-SUM(W$23:W81),"") -> 300.3632253 | X82: =IF(AND(L82="LOSS",L83<>"LOSS"),SUMIF(L$24:L82,"LOSS",K$24:K82)-SUM(X$23:X81),"") -> 
B83: Row 83 (60) | D83: 94.19266857 | F83: 12740.85466 | H83: 127.4085466 | K83: -127.4085466 | L83: LOSS | M83: =IF(COUNTA($F$6:$F$10)=5,(F84-F24)/F24,"") -> 0.2613446117 | N83: 1 | O83: new | W83: =IF(AND(L83="WIN",L84<>"WIN"),SUMIF(L$24:L83,"WIN",K$24:K83)-SUM(W$23:W82),"") ->  | X83: =IF(AND(L83="LOSS",L84<>"LOSS"),SUMIF(L$24:L83,"LOSS",K$24:K83)-SUM(X$23:X82),"") -> 
B84: Row 84 (61) | D84: 76.62303179 | F84: 12613.44612 | H84: 126.1344612 | K84: -126.1344612 | L84: LOSS | M84: =IF(COUNTA($F$6:$F$10)=5,(F85-F24)/F24,"") -> 0.2487311656 | N84: 2 | O84: last | W84: =IF(AND(L84="WIN",L85<>"WIN"),SUMIF(L$24:L84,"WIN",K$24:K84)-SUM(W$23:W83),"") ->  | X84: =IF(AND(L84="LOSS",L85<>"LOSS"),SUMIF(L$24:L84,"LOSS",K$24:K84)-SUM(X$23:X83),"") -> -253.5430078
B85: Row 85 (62) | D85: 38.62865514 | F85: 12487.31166 | H85: 124.8731166 | K85: 149.8477399 | L85: WIN | M85: =IF(COUNTA($F$6:$F$10)=5,(F86-F24)/F24,"") -> 0.2637159396 | N85: 1 | O85: last | W85: =IF(AND(L85="WIN",L86<>"WIN"),SUMIF(L$24:L85,"WIN",K$24:K85)-SUM(W$23:W84),"") -> 149.8477399 | X85: =IF(AND(L85="LOSS",L86<>"LOSS"),SUMIF(L$24:L85,"LOSS",K$24:K85)-SUM(X$23:X84),"") -> 
B86: Row 86 (63) | D86: 71.78441492 | F86: 12637.1594 | H86: 126.371594 | K86: -126.371594 | L86: LOSS | M86: =IF(COUNTA($F$6:$F$10)=5,(F87-F24)/F24,"") -> 0.2510787802 | N86: 1 | O86: new | W86: =IF(AND(L86="WIN",L87<>"WIN"),SUMIF(L$24:L86,"WIN",K$24:K86)-SUM(W$23:W85),"") ->  | X86: =IF(AND(L86="LOSS",L87<>"LOSS"),SUMIF(L$24:L86,"LOSS",K$24:K86)-SUM(X$23:X85),"") -> 
B87: Row 87 (64) | D87: 74.47815688 | F87: 12510.7878 | H87: 125.107878 | K87: -125.107878 | L87: LOSS | M87: =IF(COUNTA($F$6:$F$10)=5,(F88-F24)/F24,"") -> 0.2385679924 | N87: 2 | O87: middle | W87: =IF(AND(L87="WIN",L88<>"WIN"),SUMIF(L$24:L87,"WIN",K$24:K87)-SUM(W$23:W86),"") ->  | X87: =IF(AND(L87="LOSS",L88<>"LOSS"),SUMIF(L$24:L87,"LOSS",K$24:K87)-SUM(X$23:X86),"") -> 
B88: Row 88 (65) | D88: 97.96062223 | F88: 12385.67992 | H88: 123.8567992 | K88: -123.8567992 | L88: LOSS | M88: =IF(COUNTA($F$6:$F$10)=5,(F89-F24)/F24,"") -> 0.2261823124 | N88: 3 | O88: last | W88: =IF(AND(L88="WIN",L89<>"WIN"),SUMIF(L$24:L88,"WIN",K$24:K88)-SUM(W$23:W87),"") ->  | X88: =IF(AND(L88="LOSS",L89<>"LOSS"),SUMIF(L$24:L88,"LOSS",K$24:K88)-SUM(X$23:X87),"") -> -375.3362712
B89: Row 89 (66) | D89: =IF(COUNTA($F$6:$F$10)=5,100*RAND(),"") -> 10.10561488 | F89: 12261.82312 | H89: =IF(COUNTBLANK($F$6:$F$10),"",F89*$F$7) -> 122.6182312 | K89: 147.1418775 | L89: =IF(D89="","",IF(D89<$F$8,"WIN","LOSS")) -> WIN | M89: =IF(COUNTA($F$6:$F$10)=5,(F90-F24)/F24,"") -> 0.2408965002 | N89: =IF(L89=L88,N88+1,1) -> 1 | O89: =IF(N89=1,IF(N90=1,"last","new"),IF(N90=1,"last","middle")) -> last | W89: =IF(AND(L89="WIN",L90<>"WIN"),SUMIF(L$24:L89,"WIN",K$24:K89)-SUM(W$23:W88),"") -> 147.1418775 | X89: =IF(AND(L89="LOSS",L90<>"LOSS"),SUMIF(L$24:L89,"LOSS",K$24:K89)-SUM(X$23:X88),"") -> 
B90: Row 90 (67) | D90: 93.95193085 | F90: =IF(COUNTBLANK($F$6:$F$10),"",IF(D89<$F$8,(1+$F$7*$F$9)*F89-$F$10,(1-$F$7)*F89-$F$10)) -> 12408.965 | H90: 124.08965 | K90: =IF(COUNTBLANK($F$6:$F$10),"", IF(L90="win", H90*$F$9-$F$10, IF(L90="loss", -H90-$F$10))) -> -124.08965 | L90: LOSS | M90: =IF(COUNTA($F$6:$F$10)=5,(F91-F24)/F24,"") -> 0.2284875352 | N90: 1 | O90: new | W90: =IF(AND(L90="WIN",L91<>"WIN"),SUMIF(L$24:L90,"WIN",K$24:K90)-SUM(W$23:W89),"") ->  | X90: =IF(AND(L90="LOSS",L91<>"LOSS"),SUMIF(L$24:L90,"LOSS",K$24:K90)-SUM(X$23:X89),"") -> 
B91: Row 91 (68) | D91: 84.8614348 | F91: 12284.87535 | H91: 122.8487535 | K91: -122.8487535 | L91: LOSS | M91: =IF(COUNTA($F$6:$F$10)=5,(F92-F24)/F24,"") -> 0.2162026598 | N91: 2 | O91: last | W91: =IF(AND(L91="WIN",L92<>"WIN"),SUMIF(L$24:L91,"WIN",K$24:K91)-SUM(W$23:W90),"") ->  | X91: =IF(AND(L91="LOSS",L92<>"LOSS"),SUMIF(L$24:L91,"LOSS",K$24:K91)-SUM(X$23:X90),"") -> -246.9384035
B92: Row 92 (69) | D92: 34.73462505 | F92: 12162.0266 | H92: 121.620266 | K92: 145.9443192 | L92: WIN | M92: =IF(COUNTA($F$6:$F$10)=5,(F93-F24)/F24,"") -> 0.2307970918 | N92: 1 | O92: new | W92: =IF(AND(L92="WIN",L93<>"WIN"),SUMIF(L$24:L92,"WIN",K$24:K92)-SUM(W$23:W91),"") ->  | X92: =IF(AND(L92="LOSS",L93<>"LOSS"),SUMIF(L$24:L92,"LOSS",K$24:K92)-SUM(X$23:X91),"") -> 
B93: Row 93 (70) | D93: 51.46819768 | F93: 12307.97092 | H93: 123.0797092 | K93: 147.695651 | L93: WIN | M93: =IF(COUNTA($F$6:$F$10)=5,(F94-F24)/F24,"") -> 0.2455666569 | N93: 2 | O93: middle | W93: =IF(AND(L93="WIN",L94<>"WIN"),SUMIF(L$24:L93,"WIN",K$24:K93)-SUM(W$23:W92),"") ->  | X93: =IF(AND(L93="LOSS",L94<>"LOSS"),SUMIF(L$24:L93,"LOSS",K$24:K93)-SUM(X$23:X92),"") -> 
B94: Row 94 (71) | D94: 1.502517488 | F94: 12455.66657 | H94: 124.5566657 | K94: 149.4679988 | L94: WIN | M94: =IF(COUNTA($F$6:$F$10)=5,(F95-F24)/F24,"") -> 0.2605134567 | N94: 3 | O94: middle | W94: =IF(AND(L94="WIN",L95<>"WIN"),SUMIF(L$24:L94,"WIN",K$24:K94)-SUM(W$23:W93),"") ->  | X94: =IF(AND(L94="LOSS",L95<>"LOSS"),SUMIF(L$24:L94,"LOSS",K$24:K94)-SUM(X$23:X93),"") -> 
B95: Row 95 (72) | D95: 51.72059765 | F95: 12605.13457 | H95: 126.0513457 | K95: 151.2616148 | L95: WIN | M95: =IF(COUNTA($F$6:$F$10)=5,(F96-F24)/F24,"") -> 0.2756396182 | N95: 4 | O95: last | W95: =IF(AND(L95="WIN",L96<>"WIN"),SUMIF(L$24:L95,"WIN",K$24:K95)-SUM(W$23:W94),"") -> 594.3695838 | X95: =IF(AND(L95="LOSS",L96<>"LOSS"),SUMIF(L$24:L95,"LOSS",K$24:K95)-SUM(X$23:X94),"") -> 
B96: Row 96 (73) | D96: 81.08327886 | F96: 12756.39618 | H96: 127.5639618 | K96: -127.5639618 | L96: LOSS | M96: =IF(COUNTA($F$6:$F$10)=5,(F97-F24)/F24,"") -> 0.262883222 | N96: 1 | O96: new | W96: =IF(AND(L96="WIN",L97<>"WIN"),SUMIF(L$24:L96,"WIN",K$24:K96)-SUM(W$23:W95),"") ->  | X96: =IF(AND(L96="LOSS",L97<>"LOSS"),SUMIF(L$24:L96,"LOSS",K$24:K96)-SUM(X$23:X95),"") -> 
B97: Row 97 (74) | D97: 86.72255761 | F97: 12628.83222 | H97: 126.2883222 | K97: -126.2883222 | L97: LOSS | M97: =IF(COUNTA($F$6:$F$10)=5,(F98-F24)/F24,"") -> 0.2502543898 | N97: 2 | O97: last | W97: =IF(AND(L97="WIN",L98<>"WIN"),SUMIF(L$24:L97,"WIN",K$24:K97)-SUM(W$23:W96),"") ->  | X97: =IF(AND(L97="LOSS",L98<>"LOSS"),SUMIF(L$24:L97,"LOSS",K$24:K97)-SUM(X$23:X96),"") -> -253.852284
B98: Row 98 (75) | D98: 18.66410902 | F98: 12502.5439 | H98: 125.025439 | K98: 150.0305268 | L98: WIN | M98: =IF(COUNTA($F$6:$F$10)=5,(F99-F24)/F24,"") -> 0.2652574425 | N98: 1 | O98: last | W98: =IF(AND(L98="WIN",L99<>"WIN"),SUMIF(L$24:L98,"WIN",K$24:K98)-SUM(W$23:W97),"") -> 150.0305268 | X98: =IF(AND(L98="LOSS",L99<>"LOSS"),SUMIF(L$24:L98,"LOSS",K$24:K98)-SUM(X$23:X97),"") -> 
B99: Row 99 (76) | D99: 77.52337766 | F99: 12652.57443 | H99: 126.5257443 | K99: -126.5257443 | L99: LOSS | M99: =IF(COUNTA($F$6:$F$10)=5,(F100-F24)/F24,"") -> 0.2526048681 | N99: 1 | O99: new | W99: =IF(AND(L99="WIN",L100<>"WIN"),SUMIF(L$24:L99,"WIN",K$24:K99)-SUM(W$23:W98),"") ->  | X99: =IF(AND(L99="LOSS",L100<>"LOSS"),SUMIF(L$24:L99,"LOSS",K$24:K99)-SUM(X$23:X98),"") -> 
B100: Row 100 (77) | D100: 55.20589918 | F100: 12526.04868 | H100: 125.2604868 | K100: -125.2604868 | L100: LOSS | M100: =IF(COUNTA($F$6:$F$10)=5,(F101-F24)/F24,"") -> 0.2400788194 | N100: 2 | O100: middle | W100: =IF(AND(L100="WIN",L101<>"WIN"),SUMIF(L$24:L100,"WIN",K$24:K100)-SUM(W$23:W99),"") ->  | X100: =IF(AND(L100="LOSS",L101<>"LOSS"),SUMIF(L$24:L100,"LOSS",K$24:K100)-SUM(X$23:X99),"") -> 
B101: Row 101 (78) | D101: 69.53340902 | F101: 12400.78819 | H101: 124.0078819 | K101: -124.0078819 | L101: LOSS | M101: =IF(COUNTA($F$6:$F$10)=5,(F102-F24)/F24,"") -> 0.2276780312 | N101: 3 | O101: last | W101: =IF(AND(L101="WIN",L102<>"WIN"),SUMIF(L$24:L101,"WIN",K$24:K101)-SUM(W$23:W100),"") ->  | X101: =IF(AND(L101="LOSS",L102<>"LOSS"),SUMIF(L$24:L101,"LOSS",K$24:K101)-SUM(X$23:X100),"") -> -375.794113
B102: Row 102 (79) | D102: 13.23932269 | F102: 12276.78031 | H102: 122.7678031 | K102: 147.3213637 | L102: WIN | M102: =IF(COUNTA($F$6:$F$10)=5,(F103-F24)/F24,"") -> 0.2424101676 | N102: 1 | O102: last | W102: =IF(AND(L102="WIN",L103<>"WIN"),SUMIF(L$24:L102,"WIN",K$24:K102)-SUM(W$23:W101),"") -> 147.3213637 | X102: =IF(AND(L102="LOSS",L103<>"LOSS"),SUMIF(L$24:L102,"LOSS",K$24:K102)-SUM(X$23:X101),"") -> 
B103: Row 103 (80) | D103: 70.83407105 | F103: 12424.10168 | H103: 124.2410168 | K103: -124.2410168 | L103: LOSS | M103: =IF(COUNTA($F$6:$F$10)=5,(F104-F24)/F24,"") -> 0.2299860659 | N103: 1 | O103: last | W103: =IF(AND(L103="WIN",L104<>"WIN"),SUMIF(L$24:L103,"WIN",K$24:K103)-SUM(W$23:W102),"") ->  | X103: =IF(AND(L103="LOSS",L104<>"LOSS"),SUMIF(L$24:L103,"LOSS",K$24:K103)-SUM(X$23:X102),"") -> -124.2410168
B104: Row 104 (81) | D104: 38.96248757 | F104: 12299.86066 | H104: 122.9986066 | K104: 147.5983279 | L104: WIN | M104: =IF(COUNTA($F$6:$F$10)=5,(F105-F24)/F24,"") -> 0.2447458987 | N104: 1 | O104: last | W104: =IF(AND(L104="WIN",L105<>"WIN"),SUMIF(L$24:L104,"WIN",K$24:K104)-SUM(W$23:W103),"") -> 147.5983279 | X104: =IF(AND(L104="LOSS",L105<>"LOSS"),SUMIF(L$24:L104,"LOSS",K$24:K104)-SUM(X$23:X103),"") -> 
B105: Row 105 (82) | D105: 57.95779043 | F105: 12447.45899 | H105: 124.4745899 | K105: -124.4745899 | L105: LOSS | M105: =IF(COUNTA($F$6:$F$10)=5,(F106-F24)/F24,"") -> 0.2322984397 | N105: 1 | O105: new | W105: =IF(AND(L105="WIN",L106<>"WIN"),SUMIF(L$24:L105,"WIN",K$24:K105)-SUM(W$23:W104),"") ->  | X105: =IF(AND(L105="LOSS",L106<>"LOSS"),SUMIF(L$24:L105,"LOSS",K$24:K105)-SUM(X$23:X104),"") -> 
B106: Row 106 (83) | D106: 72.36727519 | F106: 12322.9844 | H106: 123.229844 | K106: -123.229844 | L106: LOSS | M106: =IF(COUNTA($F$6:$F$10)=5,(F107-F24)/F24,"") -> 0.2199754553 | N106: 2 | O106: last | W106: =IF(AND(L106="WIN",L107<>"WIN"),SUMIF(L$24:L106,"WIN",K$24:K106)-SUM(W$23:W105),"") ->  | X106: =IF(AND(L106="LOSS",L107<>"LOSS"),SUMIF(L$24:L106,"LOSS",K$24:K106)-SUM(X$23:X105),"") -> -247.7044338
B107: Row 107 (84) | D107: 25.0990884 | F107: 12199.75455 | H107: 121.9975455 | K107: 146.3970546 | L107: WIN | M107: =IF(COUNTA($F$6:$F$10)=5,(F108-F24)/F24,"") -> 0.2346151608 | N107: 1 | O107: new | W107: =IF(AND(L107="WIN",L108<>"WIN"),SUMIF(L$24:L107,"WIN",K$24:K107)-SUM(W$23:W106),"") ->  | X107: =IF(AND(L107="LOSS",L108<>"LOSS"),SUMIF(L$24:L107,"LOSS",K$24:K107)-SUM(X$23:X106),"") -> 
B108: Row 108 (85) | D108: 41.30002725 | F108: 12346.15161 | H108: 123.4615161 | K108: 148.1538193 | L108: WIN | M108: =IF(COUNTA($F$6:$F$10)=5,(F109-F24)/F24,"") -> 0.2494305427 | N108: 2 | O108: middle | W108: =IF(AND(L108="WIN",L109<>"WIN"),SUMIF(L$24:L108,"WIN",K$24:K108)-SUM(W$23:W107),"") ->  | X108: =IF(AND(L108="LOSS",L109<>"LOSS"),SUMIF(L$24:L108,"LOSS",K$24:K108)-SUM(X$23:X107),"") -> 
B109: Row 109 (86) | D109: 51.03177899 | F109: 12494.30543 | H109: 124.9430543 | K109: 149.9316651 | L109: WIN | M109: =IF(COUNTA($F$6:$F$10)=5,(F110-F24)/F24,"") -> 0.2644237092 | N109: 3 | O109: middle | W109: =IF(AND(L109="WIN",L110<>"WIN"),SUMIF(L$24:L109,"WIN",K$24:K109)-SUM(W$23:W108),"") ->  | X109: =IF(AND(L109="LOSS",L110<>"LOSS"),SUMIF(L$24:L109,"LOSS",K$24:K109)-SUM(X$23:X108),"") -> 
B110: Row 110 (87) | D110: 10.1820637 | F110: 12644.23709 | H110: 126.4423709 | K110: 151.7308451 | L110: WIN | M110: =IF(COUNTA($F$6:$F$10)=5,(F111-F24)/F24,"") -> 0.2795967937 | N110: 4 | O110: middle | W110: =IF(AND(L110="WIN",L111<>"WIN"),SUMIF(L$24:L110,"WIN",K$24:K110)-SUM(W$23:W109),"") ->  | X110: =IF(AND(L110="LOSS",L111<>"LOSS"),SUMIF(L$24:L110,"LOSS",K$24:K110)-SUM(X$23:X109),"") -> 
B111: Row 111 (88) | D111: 3.066285841 | F111: 12795.96794 | H111: 127.9596794 | K111: 153.5516152 | L111: WIN | M111: =IF(COUNTA($F$6:$F$10)=5,(F112-F24)/F24,"") -> 0.2949519552 | N111: 5 | O111: last | W111: =IF(AND(L111="WIN",L112<>"WIN"),SUMIF(L$24:L111,"WIN",K$24:K111)-SUM(W$23:W110),"") -> 749.7649994 | X111: =IF(AND(L111="LOSS",L112<>"LOSS"),SUMIF(L$24:L111,"LOSS",K$24:K111)-SUM(X$23:X110),"") -> 
B112: Row 112 (89) | D112: 61.25935942 | F112: 12949.51955 | H112: 129.4951955 | K112: -129.4951955 | L112: LOSS | M112: =IF(COUNTA($F$6:$F$10)=5,(F113-F24)/F24,"") -> 0.2820024357 | N112: 1 | O112: last | W112: =IF(AND(L112="WIN",L113<>"WIN"),SUMIF(L$24:L112,"WIN",K$24:K112)-SUM(W$23:W111),"") ->  | X112: =IF(AND(L112="LOSS",L113<>"LOSS"),SUMIF(L$24:L112,"LOSS",K$24:K112)-SUM(X$23:X111),"") -> -129.4951955
B113: Row 113 (90) | D113: 3.403843062 | F113: 12820.02436 | H113: 128.2002436 | K113: 153.8402923 | L113: WIN | M113: =IF(COUNTA($F$6:$F$10)=5,(F114-F24)/F24,"") -> 0.2973864649 | N113: 1 | O113: new | W113: =IF(AND(L113="WIN",L114<>"WIN"),SUMIF(L$24:L113,"WIN",K$24:K113)-SUM(W$23:W112),"") ->  | X113: =IF(AND(L113="LOSS",L114<>"LOSS"),SUMIF(L$24:L113,"LOSS",K$24:K113)-SUM(X$23:X112),"") -> 
B114: Row 114 (91) | D114: 0.09226132443 | F114: 12973.86465 | H114: 129.7386465 | K114: 155.6863758 | L114: WIN | M114: =IF(COUNTA($F$6:$F$10)=5,(F115-F24)/F24,"") -> 0.3129551025 | N114: 2 | O114: last | W114: =IF(AND(L114="WIN",L115<>"WIN"),SUMIF(L$24:L114,"WIN",K$24:K114)-SUM(W$23:W113),"") -> 309.5266681 | X114: =IF(AND(L114="LOSS",L115<>"LOSS"),SUMIF(L$24:L114,"LOSS",K$24:K114)-SUM(X$23:X113),"") -> 
B115: Row 115 (92) | D115: 90.9060211 | F115: 13129.55103 | H115: 131.2955103 | K115: -131.2955103 | L115: LOSS | M115: =IF(COUNTA($F$6:$F$10)=5,(F116-F24)/F24,"") -> 0.2998255515 | N115: 1 | O115: new | W115: =IF(AND(L115="WIN",L116<>"WIN"),SUMIF(L$24:L115,"WIN",K$24:K115)-SUM(W$23:W114),"") ->  | X115: =IF(AND(L115="LOSS",L116<>"LOSS"),SUMIF(L$24:L115,"LOSS",K$24:K115)-SUM(X$23:X114),"") -> 
B116: Row 116 (93) | D116: 82.64064383 | F116: 12998.25551 | H116: 129.9825551 | K116: -129.9825551 | L116: LOSS | M116: =IF(COUNTA($F$6:$F$10)=5,(F117-F24)/F24,"") -> 0.286827296 | N116: 2 | O116: last | W116: =IF(AND(L116="WIN",L117<>"WIN"),SUMIF(L$24:L116,"WIN",K$24:K116)-SUM(W$23:W115),"") ->  | X116: =IF(AND(L116="LOSS",L117<>"LOSS"),SUMIF(L$24:L116,"LOSS",K$24:K116)-SUM(X$23:X115),"") -> -261.2780654
B117: Row 117 (94) | D117: 1.814293967 | F117: 12868.27296 | H117: 128.6827296 | K117: 154.4192755 | L117: WIN | M117: =IF(COUNTA($F$6:$F$10)=5,(F118-F24)/F24,"") -> 0.3022692235 | N117: 1 | O117: new | W117: =IF(AND(L117="WIN",L118<>"WIN"),SUMIF(L$24:L117,"WIN",K$24:K117)-SUM(W$23:W116),"") ->  | X117: =IF(AND(L117="LOSS",L118<>"LOSS"),SUMIF(L$24:L117,"LOSS",K$24:K117)-SUM(X$23:X116),"") -> 
B118: Row 118 (95) | D118: 14.81921785 | F118: 13022.69224 | H118: 130.2269224 | K118: 156.2723068 | L118: WIN | M118: =IF(COUNTA($F$6:$F$10)=5,(F119-F24)/F24,"") -> 0.3178964542 | N118: 2 | O118: middle | W118: =IF(AND(L118="WIN",L119<>"WIN"),SUMIF(L$24:L118,"WIN",K$24:K118)-SUM(W$23:W117),"") ->  | X118: =IF(AND(L118="LOSS",L119<>"LOSS"),SUMIF(L$24:L118,"LOSS",K$24:K118)-SUM(X$23:X117),"") -> 
B119: Row 119 (96) | D119: 33.26517593 | F119: 13178.96454 | H119: 131.7896454 | K119: 158.1475745 | L119: WIN | M119: =IF(COUNTA($F$6:$F$10)=5,(F120-F24)/F24,"") -> 0.3337112116 | N119: 3 | O119: last | W119: =IF(AND(L119="WIN",L120<>"WIN"),SUMIF(L$24:L119,"WIN",K$24:K119)-SUM(W$23:W118),"") -> 468.8391568 | X119: =IF(AND(L119="LOSS",L120<>"LOSS"),SUMIF(L$24:L119,"LOSS",K$24:K119)-SUM(X$23:X118),"") -> 
B120: Row 120 (97) | D120: 92.12649997 | F120: 13337.11212 | H120: 133.3711212 | K120: -133.3711212 | L120: LOSS | M120: =IF(COUNTA($F$6:$F$10)=5,(F121-F24)/F24,"") -> 0.3203740995 | N120: 1 | O120: new | W120: =IF(AND(L120="WIN",L121<>"WIN"),SUMIF(L$24:L120,"WIN",K$24:K120)-SUM(W$23:W119),"") ->  | X120: =IF(AND(L120="LOSS",L121<>"LOSS"),SUMIF(L$24:L120,"LOSS",K$24:K120)-SUM(X$23:X119),"") -> 
B121: Row 121 (98) | D121: 68.88695563 | F121: 13203.741 | H121: 132.03741 | K121: -132.03741 | L121: LOSS | M121: =IF(COUNTA($F$6:$F$10)=5,(F122-F24)/F24,"") -> 0.3071703585 | N121: 2 | O121: middle | W121: =IF(AND(L121="WIN",L122<>"WIN"),SUMIF(L$24:L121,"WIN",K$24:K121)-SUM(W$23:W120),"") ->  | X121: =IF(AND(L121="LOSS",L122<>"LOSS"),SUMIF(L$24:L121,"LOSS",K$24:K121)-SUM(X$23:X120),"") -> 
B122: Row 122 (99) | D122: 76.34242967 | F122: 13071.70359 | H122: 130.7170359 | K122: -130.7170359 | L122: LOSS | M122: =IF(COUNTA($F$6:$F$10)=5,(F123-F24)/F24,"") -> 0.2940986549 | N122: 3 | O122: middle | W122: =IF(AND(L122="WIN",L123<>"WIN"),SUMIF(L$24:L122,"WIN",K$24:K122)-SUM(W$23:W121),"") ->  | X122: =IF(AND(L122="LOSS",L123<>"LOSS"),SUMIF(L$24:L122,"LOSS",K$24:K122)-SUM(X$23:X121),"") -> 
B123: Row 123 (100) | D123: 58.89720229 | F123: 12940.98655 | H123: 129.4098655 | K123: -129.4098655 | L123: LOSS | M123: =IF(COUNTA($F$6:$F$10)=5,(F124-F24)/F24,"") -> 0.2811576684 | N123: 4 | O123: last | W123: =IF(AND(L123="WIN",L124<>"WIN"),SUMIF(L$24:L123,"WIN",K$24:K123)-SUM(W$23:W122),"") ->  | X123: =IF(AND(L123="LOSS",L124<>"LOSS"),SUMIF(L$24:L123,"LOSS",K$24:K123)-SUM(X$23:X122),"") -> -525.5354325
B124: Row 124 (101) | D124: 39.1367751 | F124: 12811.57668 | H124: 128.1157668 | K124: 153.7389202 | L124: WIN | M124: =IF(COUNTA($F$6:$F$10)=5,(F125-F24)/F24,"") -> 0.2965315604 | N124: 1 | O124: new | W124: =IF(AND(L124="WIN",L125<>"WIN"),SUMIF(L$24:L124,"WIN",K$24:K124)-SUM(W$23:W123),"") ->  | X124: =IF(AND(L124="LOSS",L125<>"LOSS"),SUMIF(L$24:L124,"LOSS",K$24:K124)-SUM(X$23:X123),"") -> 
B125: Row 125 (102) | D125: 53.85441796 | F125: 12965.3156 | H125: 129.653156 | K125: 155.5837873 | L125: WIN | M125: =IF(COUNTA($F$6:$F$10)=5,(F126-F24)/F24,"") -> 0.3120899391 | N125: 2 | O125: last | W125: =IF(AND(L125="WIN",L126<>"WIN"),SUMIF(L$24:L125,"WIN",K$24:K125)-SUM(W$23:W124),"") -> 309.3227075 | X125: =IF(AND(L125="LOSS",L126<>"LOSS"),SUMIF(L$24:L125,"LOSS",K$24:K125)-SUM(X$23:X124),"") -> 
B126: Row 126 (103) | D126: 56.32746439 | F126: 13120.89939 | H126: 131.2089939 | K126: -131.2089939 | L126: LOSS | M126: =IF(COUNTA($F$6:$F$10)=5,(F127-F24)/F24,"") -> 0.2989690398 | N126: 1 | O126: new | W126: =IF(AND(L126="WIN",L127<>"WIN"),SUMIF(L$24:L126,"WIN",K$24:K126)-SUM(W$23:W125),"") ->  | X126: =IF(AND(L126="LOSS",L127<>"LOSS"),SUMIF(L$24:L126,"LOSS",K$24:K126)-SUM(X$23:X125),"") -> 
B127: Row 127 (104) | D127: 63.86957683 | F127: 12989.6904 | H127: 129.896904 | K127: -129.896904 | L127: LOSS | M127: =IF(COUNTA($F$6:$F$10)=5,(F128-F24)/F24,"") -> 0.2859793494 | N127: 2 | O127: last | W127: =IF(AND(L127="WIN",L128<>"WIN"),SUMIF(L$24:L127,"WIN",K$24:K127)-SUM(W$23:W126),"") ->  | X127: =IF(AND(L127="LOSS",L128<>"LOSS"),SUMIF(L$24:L127,"LOSS",K$24:K127)-SUM(X$23:X126),"") -> -261.1058979
B128: Row 128 (105) | D128: 24.62045045 | F128: 12859.79349 | H128: 128.5979349 | K128: 154.3175219 | L128: WIN | M128: =IF(COUNTA($F$6:$F$10)=5,(F129-F24)/F24,"") -> 0.3014111015 | N128: 1 | O128: new | W128: =IF(AND(L128="WIN",L129<>"WIN"),SUMIF(L$24:L128,"WIN",K$24:K128)-SUM(W$23:W127),"") ->  | X128: =IF(AND(L128="LOSS",L129<>"LOSS"),SUMIF(L$24:L128,"LOSS",K$24:K128)-SUM(X$23:X127),"") -> 
B129: Row 129 (106) | D129: 11.58497278 | F129: 13014.11102 | H129: 130.1411102 | K129: 156.1693322 | L129: WIN | M129: =IF(COUNTA($F$6:$F$10)=5,(F130-F24)/F24,"") -> 0.3170280348 | N129: 2 | O129: last | W129: =IF(AND(L129="WIN",L130<>"WIN"),SUMIF(L$24:L129,"WIN",K$24:K129)-SUM(W$23:W128),"") -> 310.4868541 | X129: =IF(AND(L129="LOSS",L130<>"LOSS"),SUMIF(L$24:L129,"LOSS",K$24:K129)-SUM(X$23:X128),"") -> 
B130: Row 130 (107) | D130: 85.24096439 | F130: 13170.28035 | H130: 131.7028035 | K130: -131.7028035 | L130: LOSS | M130: =IF(COUNTA($F$6:$F$10)=5,(F131-F24)/F24,"") -> 0.3038577544 | N130: 1 | O130: new | W130: =IF(AND(L130="WIN",L131<>"WIN"),SUMIF(L$24:L130,"WIN",K$24:K130)-SUM(W$23:W129),"") ->  | X130: =IF(AND(L130="LOSS",L131<>"LOSS"),SUMIF(L$24:L130,"LOSS",K$24:K130)-SUM(X$23:X129),"") -> 
B131: Row 131 (108) | D131: 91.29273224 | F131: 13038.57754 | H131: 130.3857754 | K131: -130.3857754 | L131: LOSS | M131: =IF(COUNTA($F$6:$F$10)=5,(F132-F24)/F24,"") -> 0.2908191769 | N131: 2 | O131: middle | W131: =IF(AND(L131="WIN",L132<>"WIN"),SUMIF(L$24:L131,"WIN",K$24:K131)-SUM(W$23:W130),"") ->  | X131: =IF(AND(L131="LOSS",L132<>"LOSS"),SUMIF(L$24:L131,"LOSS",K$24:K131)-SUM(X$23:X130),"") ->  | Z131: Distribution and Reprint Policy
B132: Row 132 (109) | D132: 66.39101389 | F132: 12908.19177 | H132: 129.0819177 | K132: -129.0819177 | L132: LOSS | M132: =IF(COUNTA($F$6:$F$10)=5,(F133-F24)/F24,"") -> 0.2779109851 | N132: 3 | O132: middle | W132: =IF(AND(L132="WIN",L133<>"WIN"),SUMIF(L$24:L132,"WIN",K$24:K132)-SUM(W$23:W131),"") ->  | X132: =IF(AND(L132="LOSS",L133<>"LOSS"),SUMIF(L$24:L132,"LOSS",K$24:K132)-SUM(X$23:X131),"") ->  | Z132: This document maybe be republished and distributed under the proviso that it cannot be altered or amended.
B133: Row 133 (110) | D133: 81.27324375 | F133: 12779.10985 | H133: 127.7910985 | K133: -127.7910985 | L133: LOSS | M133: =IF(COUNTA($F$6:$F$10)=5,(F134-F24)/F24,"") -> 0.2651318753 | N133: 4 | O133: last | W133: =IF(AND(L133="WIN",L134<>"WIN"),SUMIF(L$24:L133,"WIN",K$24:K133)-SUM(W$23:W132),"") ->  | X133: =IF(AND(L133="LOSS",L134<>"LOSS"),SUMIF(L$24:L133,"LOSS",K$24:K133)-SUM(X$23:X132),"") -> -518.9615951 | Z133: DayTradingLife.com Reserve all rights to this effect.
B134: Row 134 (111) | D134: 24.40351237 | F134: 12651.31875 | H134: 126.5131875 | K134: 151.815825 | L134: WIN | M134: =IF(COUNTA($F$6:$F$10)=5,(F135-F24)/F24,"") -> 0.2803134578 | N134: 1 | O134: last | W134: =IF(AND(L134="WIN",L135<>"WIN"),SUMIF(L$24:L134,"WIN",K$24:K134)-SUM(W$23:W133),"") -> 151.815825 | X134: =IF(AND(L134="LOSS",L135<>"LOSS"),SUMIF(L$24:L134,"LOSS",K$24:K134)-SUM(X$23:X133),"") ->  | AA134: For any futher information please email me at: | AH134: traderdowboy@gmail.com
B135: Row 135 (112) | D135: 88.49528887 | F135: 12803.13458 | H135: 128.0313458 | K135: -128.0313458 | L135: LOSS | M135: =IF(COUNTA($F$6:$F$10)=5,(F136-F24)/F24,"") -> 0.2675103232 | N135: 1 | O135: last | W135: =IF(AND(L135="WIN",L136<>"WIN"),SUMIF(L$24:L135,"WIN",K$24:K135)-SUM(W$23:W134),"") ->  | X135: =IF(AND(L135="LOSS",L136<>"LOSS"),SUMIF(L$24:L135,"LOSS",K$24:K135)-SUM(X$23:X134),"") -> -128.0313458 | Z135: Copyright © 2011-2012 - DayTradingLife.com. - All rights reserved.
B136: Row 136 (113) | D136: 35.76355565 | F136: 12675.10323 | H136: 126.7510323 | K136: 152.1012388 | L136: WIN | M136: =IF(COUNTA($F$6:$F$10)=5,(F137-F24)/F24,"") -> 0.2827204471 | N136: 1 | O136: last | W136: =IF(AND(L136="WIN",L137<>"WIN"),SUMIF(L$24:L136,"WIN",K$24:K136)-SUM(W$23:W135),"") -> 152.1012388 | X136: =IF(AND(L136="LOSS",L137<>"LOSS"),SUMIF(L$24:L136,"LOSS",K$24:K136)-SUM(X$23:X135),"") -> 
B137: Row 137 (114) | D137: 82.17327593 | F137: 12827.20447 | H137: 128.2720447 | K137: -128.2720447 | L137: LOSS | M137: =IF(COUNTA($F$6:$F$10)=5,(F138-F24)/F24,"") -> 0.2698932426 | N137: 1 | O137: last | W137: =IF(AND(L137="WIN",L138<>"WIN"),SUMIF(L$24:L137,"WIN",K$24:K137)-SUM(W$23:W136),"") ->  | X137: =IF(AND(L137="LOSS",L138<>"LOSS"),SUMIF(L$24:L137,"LOSS",K$24:K137)-SUM(X$23:X136),"") -> -128.2720447
B138: Row 138 (115) | D138: 28.02879994 | F138: 12698.93243 | H138: 126.9893243 | K138: 152.3871891 | L138: WIN | M138: =IF(COUNTA($F$6:$F$10)=5,(F139-F24)/F24,"") -> 0.2851319615 | N138: 1 | O138: last | W138: =IF(AND(L138="WIN",L139<>"WIN"),SUMIF(L$24:L138,"WIN",K$24:K138)-SUM(W$23:W137),"") -> 152.3871891 | X138: =IF(AND(L138="LOSS",L139<>"LOSS"),SUMIF(L$24:L138,"LOSS",K$24:K138)-SUM(X$23:X137),"") -> 
B139: Row 139 (116) | D139: 99.72778493 | F139: 12851.31962 | H139: 128.5131962 | K139: -128.5131962 | L139: LOSS | M139: =IF(COUNTA($F$6:$F$10)=5,(F140-F24)/F24,"") -> 0.2722806419 | N139: 1 | O139: last | W139: =IF(AND(L139="WIN",L140<>"WIN"),SUMIF(L$24:L139,"WIN",K$24:K139)-SUM(W$23:W138),"") ->  | X139: =IF(AND(L139="LOSS",L140<>"LOSS"),SUMIF(L$24:L139,"LOSS",K$24:K139)-SUM(X$23:X138),"") -> -128.5131962
B140: Row 140 (117) | D140: 48.71124439 | F140: 12722.80642 | H140: 127.2280642 | K140: 152.673677 | L140: WIN | M140: =IF(COUNTA($F$6:$F$10)=5,(F141-F24)/F24,"") -> 0.2875480096 | N140: 1 | O140: last | W140: =IF(AND(L140="WIN",L141<>"WIN"),SUMIF(L$24:L140,"WIN",K$24:K140)-SUM(W$23:W139),"") -> 152.673677 | X140: =IF(AND(L140="LOSS",L141<>"LOSS"),SUMIF(L$24:L140,"LOSS",K$24:K140)-SUM(X$23:X139),"") -> 
B141: Row 141 (118) | D141: 78.15972902 | F141: 12875.4801 | H141: 128.754801 | K141: -128.754801 | L141: LOSS | M141: =IF(COUNTA($F$6:$F$10)=5,(F142-F24)/F24,"") -> 0.2746725295 | N141: 1 | O141: last | W141: =IF(AND(L141="WIN",L142<>"WIN"),SUMIF(L$24:L141,"WIN",K$24:K141)-SUM(W$23:W140),"") ->  | X141: =IF(AND(L141="LOSS",L142<>"LOSS"),SUMIF(L$24:L141,"LOSS",K$24:K141)-SUM(X$23:X140),"") -> -128.754801
B142: Row 142 (119) | D142: 19.97112725 | F142: 12746.72529 | H142: 127.4672529 | K142: 152.9607035 | L142: WIN | M142: =IF(COUNTA($F$6:$F$10)=5,(F143-F24)/F24,"") -> 0.2899685998 | N142: 1 | O142: new | W142: =IF(AND(L142="WIN",L143<>"WIN"),SUMIF(L$24:L142,"WIN",K$24:K142)-SUM(W$23:W141),"") ->  | X142: =IF(AND(L142="LOSS",L143<>"LOSS"),SUMIF(L$24:L142,"LOSS",K$24:K142)-SUM(X$23:X141),"") -> 
B143: Row 143 (120) | D143: 19.42130164 | F143: 12899.686 | H143: 128.99686 | K143: 154.796232 | L143: WIN | M143: =IF(COUNTA($F$6:$F$10)=5,(F144-F24)/F24,"") -> 0.305448223 | N143: 2 | O143: last | W143: =IF(AND(L143="WIN",L144<>"WIN"),SUMIF(L$24:L143,"WIN",K$24:K143)-SUM(W$23:W142),"") -> 307.7569355 | X143: =IF(AND(L143="LOSS",L144<>"LOSS"),SUMIF(L$24:L143,"LOSS",K$24:K143)-SUM(X$23:X142),"") -> 
B144: Row 144 (121) | D144: 64.57292444 | F144: 13054.48223 | H144: 130.5448223 | K144: -130.5448223 | L144: LOSS | M144: =IF(COUNTA($F$6:$F$10)=5,(F145-F24)/F24,"") -> 0.2923937408 | N144: 1 | O144: last | W144: =IF(AND(L144="WIN",L145<>"WIN"),SUMIF(L$24:L144,"WIN",K$24:K144)-SUM(W$23:W143),"") ->  | X144: =IF(AND(L144="LOSS",L145<>"LOSS"),SUMIF(L$24:L144,"LOSS",K$24:K144)-SUM(X$23:X143),"") -> -130.5448223
B145: Row 145 (122) | D145: 17.60506342 | F145: 12923.93741 | H145: 129.2393741 | K145: 155.0872489 | L145: WIN | M145: =IF(COUNTA($F$6:$F$10)=5,(F146-F24)/F24,"") -> 0.3079024657 | N145: 1 | O145: last | W145: =IF(AND(L145="WIN",L146<>"WIN"),SUMIF(L$24:L145,"WIN",K$24:K145)-SUM(W$23:W144),"") -> 155.0872489 | X145: =IF(AND(L145="LOSS",L146<>"LOSS"),SUMIF(L$24:L145,"LOSS",K$24:K145)-SUM(X$23:X144),"") -> 
B146: Row 146 (123) | D146: 86.48851996 | F146: 13079.02466 | H146: 130.7902466 | K146: -130.7902466 | L146: LOSS | M146: =IF(COUNTA($F$6:$F$10)=5,(F147-F24)/F24,"") -> 0.294823441 | N146: 1 | O146: last | W146: =IF(AND(L146="WIN",L147<>"WIN"),SUMIF(L$24:L146,"WIN",K$24:K146)-SUM(W$23:W145),"") ->  | X146: =IF(AND(L146="LOSS",L147<>"LOSS"),SUMIF(L$24:L146,"LOSS",K$24:K146)-SUM(X$23:X145),"") -> -130.7902466
B147: Row 147 (124) | D147: 47.00826726 | F147: 12948.23441 | H147: 129.4823441 | K147: 155.3788129 | L147: WIN | M147: =IF(COUNTA($F$6:$F$10)=5,(F148-F24)/F24,"") -> 0.3103613223 | N147: 1 | O147: last | W147: =IF(AND(L147="WIN",L148<>"WIN"),SUMIF(L$24:L147,"WIN",K$24:K147)-SUM(W$23:W146),"") -> 155.3788129 | X147: =IF(AND(L147="LOSS",L148<>"LOSS"),SUMIF(L$24:L147,"LOSS",K$24:K147)-SUM(X$23:X146),"") -> 
B148: Row 148 (125) | D148: 64.77212427 | F148: 13103.61322 | H148: 131.0361322 | K148: -131.0361322 | L148: LOSS | M148: =IF(COUNTA($F$6:$F$10)=5,(F149-F24)/F24,"") -> 0.2972577091 | N148: 1 | O148: last | W148: =IF(AND(L148="WIN",L149<>"WIN"),SUMIF(L$24:L148,"WIN",K$24:K148)-SUM(W$23:W147),"") ->  | X148: =IF(AND(L148="LOSS",L149<>"LOSS"),SUMIF(L$24:L148,"LOSS",K$24:K148)-SUM(X$23:X147),"") -> -131.0361322
B149: Row 149 (126) | D149: 28.32513038 | F149: 12972.57709 | H149: 129.7257709 | K149: 155.6709251 | L149: WIN | M149: =IF(COUNTA($F$6:$F$10)=5,(F150-F24)/F24,"") -> 0.3128248016 | N149: 1 | O149: last | W149: =IF(AND(L149="WIN",L150<>"WIN"),SUMIF(L$24:L149,"WIN",K$24:K149)-SUM(W$23:W148),"") -> 155.6709251 | X149: =IF(AND(L149="LOSS",L150<>"LOSS"),SUMIF(L$24:L149,"LOSS",K$24:K149)-SUM(X$23:X148),"") -> 
B150: Row 150 (127) | D150: 96.13906435 | F150: 13128.24802 | H150: 131.2824802 | K150: -131.2824802 | L150: LOSS | M150: =IF(COUNTA($F$6:$F$10)=5,(F151-F24)/F24,"") -> 0.2996965536 | N150: 1 | O150: new | W150: =IF(AND(L150="WIN",L151<>"WIN"),SUMIF(L$24:L150,"WIN",K$24:K150)-SUM(W$23:W149),"") ->  | X150: =IF(AND(L150="LOSS",L151<>"LOSS"),SUMIF(L$24:L150,"LOSS",K$24:K150)-SUM(X$23:X149),"") -> 
B151: Row 151 (128) | D151: 77.25236057 | F151: 12996.96554 | H151: 129.9696554 | K151: -129.9696554 | L151: LOSS | M151: =IF(COUNTA($F$6:$F$10)=5,(F152-F24)/F24,"") -> 0.2866995881 | N151: 2 | O151: last | W151: =IF(AND(L151="WIN",L152<>"WIN"),SUMIF(L$24:L151,"WIN",K$24:K151)-SUM(W$23:W150),"") ->  | X151: =IF(AND(L151="LOSS",L152<>"LOSS"),SUMIF(L$24:L151,"LOSS",K$24:K151)-SUM(X$23:X150),"") -> -261.2521355
B152: Row 152 (129) | D152: 20.62756069 | F152: 12866.99588 | H152: 128.6699588 | K152: 154.4039506 | L152: WIN | M152: =IF(COUNTA($F$6:$F$10)=5,(F153-F24)/F24,"") -> 0.3021399831 | N152: 1 | O152: new | W152: =IF(AND(L152="WIN",L153<>"WIN"),SUMIF(L$24:L152,"WIN",K$24:K152)-SUM(W$23:W151),"") ->  | X152: =IF(AND(L152="LOSS",L153<>"LOSS"),SUMIF(L$24:L152,"LOSS",K$24:K152)-SUM(X$23:X151),"") -> 
B153: Row 153 (130) | D153: =IF(COUNTA($F$6:$F$10)=5,100*RAND(),"") -> 10.48254591 | F153: 13021.39983 | H153: =IF(COUNTBLANK($F$6:$F$10),"",F153*$F$7) -> 130.2139983 | K153: 156.256798 | L153: =IF(D153="","",IF(D153<$F$8,"WIN","LOSS")) -> WIN | M153: =IF(COUNTA($F$6:$F$10)=5,(F154-F24)/F24,"") -> 0.3177656629 | N153: =IF(L153=L152,N152+1,1) -> 2 | O153: =IF(N153=1,IF(N154=1,"last","new"),IF(N154=1,"last","middle")) -> last | W153: =IF(AND(L153="WIN",L154<>"WIN"),SUMIF(L$24:L153,"WIN",K$24:K153)-SUM(W$23:W152),"") -> 310.6607485 | X153: =IF(AND(L153="LOSS",L154<>"LOSS"),SUMIF(L$24:L153,"LOSS",K$24:K153)-SUM(X$23:X152),"") -> 
B154: Row 154 (131) | D154: 65.87059438 | F154: =IF(COUNTBLANK($F$6:$F$10),"",IF(D153<$F$8,(1+$F$7*$F$9)*F153-$F$10,(1-$F$7)*F153-$F$10)) -> 13177.65663 | H154: 131.7765663 | K154: =IF(COUNTBLANK($F$6:$F$10),"", IF(L154="win", H154*$F$9-$F$10, IF(L154="loss", -H154-$F$10))) -> -131.7765663 | L154: LOSS | M154: =IF(COUNTA($F$6:$F$10)=5,(F155-F24)/F24,"") -> 0.3045880063 | N154: 1 | O154: last | W154: =IF(AND(L154="WIN",L155<>"WIN"),SUMIF(L$24:L154,"WIN",K$24:K154)-SUM(W$23:W153),"") ->  | X154: =IF(AND(L154="LOSS",L155<>"LOSS"),SUMIF(L$24:L154,"LOSS",K$24:K154)-SUM(X$23:X153),"") -> -131.7765663
B155: Row 155 (132) | D155: 14.10258753 | F155: 13045.88006 | H155: 130.4588006 | K155: 156.5505608 | L155: WIN | M155: =IF(COUNTA($F$6:$F$10)=5,(F156-F24)/F24,"") -> 0.3202430624 | N155: 1 | O155: new | W155: =IF(AND(L155="WIN",L156<>"WIN"),SUMIF(L$24:L155,"WIN",K$24:K155)-SUM(W$23:W154),"") ->  | X155: =IF(AND(L155="LOSS",L156<>"LOSS"),SUMIF(L$24:L155,"LOSS",K$24:K155)-SUM(X$23:X154),"") -> 
B156: Row 156 (133) | D156: 39.80705566 | F156: 13202.43062 | H156: 132.0243062 | K156: 158.4291675 | L156: WIN | M156: =IF(COUNTA($F$6:$F$10)=5,(F157-F24)/F24,"") -> 0.3360859791 | N156: 2 | O156: middle | W156: =IF(AND(L156="WIN",L157<>"WIN"),SUMIF(L$24:L156,"WIN",K$24:K156)-SUM(W$23:W155),"") ->  | X156: =IF(AND(L156="LOSS",L157<>"LOSS"),SUMIF(L$24:L156,"LOSS",K$24:K156)-SUM(X$23:X155),"") -> 
B157: Row 157 (134) | D157: 17.60417038 | F157: 13360.85979 | H157: 133.6085979 | K157: 160.3303175 | L157: WIN | M157: =IF(COUNTA($F$6:$F$10)=5,(F158-F24)/F24,"") -> 0.3521190109 | N157: 3 | O157: middle | W157: =IF(AND(L157="WIN",L158<>"WIN"),SUMIF(L$24:L157,"WIN",K$24:K157)-SUM(W$23:W156),"") ->  | X157: =IF(AND(L157="LOSS",L158<>"LOSS"),SUMIF(L$24:L157,"LOSS",K$24:K157)-SUM(X$23:X156),"") -> 
B158: Row 158 (135) | D158: 54.80904386 | F158: 13521.19011 | H158: 135.2119011 | K158: 162.2542813 | L158: WIN | M158: =IF(COUNTA($F$6:$F$10)=5,(F159-F24)/F24,"") -> 0.368344439 | N158: 4 | O158: last | W158: =IF(AND(L158="WIN",L159<>"WIN"),SUMIF(L$24:L158,"WIN",K$24:K158)-SUM(W$23:W157),"") -> 637.564327 | X158: =IF(AND(L158="LOSS",L159<>"LOSS"),SUMIF(L$24:L158,"LOSS",K$24:K158)-SUM(X$23:X157),"") -> 
B159: Row 159 (136) | D159: 90.82886253 | F159: 13683.44439 | H159: 136.8344439 | K159: -136.8344439 | L159: LOSS | M159: =IF(COUNTA($F$6:$F$10)=5,(F160-F24)/F24,"") -> 0.3546609946 | N159: 1 | O159: new | W159: =IF(AND(L159="WIN",L160<>"WIN"),SUMIF(L$24:L159,"WIN",K$24:K159)-SUM(W$23:W158),"") ->  | X159: =IF(AND(L159="LOSS",L160<>"LOSS"),SUMIF(L$24:L159,"LOSS",K$24:K159)-SUM(X$23:X158),"") -> 
B160: Row 160 (137) | D160: 77.18266601 | F160: 13546.60995 | H160: 135.4660995 | K160: -135.4660995 | L160: LOSS | M160: =IF(COUNTA($F$6:$F$10)=5,(F161-F24)/F24,"") -> 0.3411143847 | N160: 2 | O160: last | W160: =IF(AND(L160="WIN",L161<>"WIN"),SUMIF(L$24:L160,"WIN",K$24:K160)-SUM(W$23:W159),"") ->  | X160: =IF(AND(L160="LOSS",L161<>"LOSS"),SUMIF(L$24:L160,"LOSS",K$24:K160)-SUM(X$23:X159),"") -> -272.3005434
B161: Row 161 (138) | D161: 16.13248557 | F161: 13411.14385 | H161: 134.1114385 | K161: 160.9337262 | L161: WIN | M161: =IF(COUNTA($F$6:$F$10)=5,(F162-F24)/F24,"") -> 0.3572077573 | N161: 1 | O161: last | W161: =IF(AND(L161="WIN",L162<>"WIN"),SUMIF(L$24:L161,"WIN",K$24:K161)-SUM(W$23:W160),"") -> 160.9337262 | X161: =IF(AND(L161="LOSS",L162<>"LOSS"),SUMIF(L$24:L161,"LOSS",K$24:K161)-SUM(X$23:X160),"") -> 
B162: Row 162 (139) | D162: 88.20249728 | F162: 13572.07757 | H162: 135.7207757 | K162: -135.7207757 | L162: LOSS | M162: =IF(COUNTA($F$6:$F$10)=5,(F163-F24)/F24,"") -> 0.3436356797 | N162: 1 | O162: new | W162: =IF(AND(L162="WIN",L163<>"WIN"),SUMIF(L$24:L162,"WIN",K$24:K162)-SUM(W$23:W161),"") ->  | X162: =IF(AND(L162="LOSS",L163<>"LOSS"),SUMIF(L$24:L162,"LOSS",K$24:K162)-SUM(X$23:X161),"") -> 
B163: Row 163 (140) | D163: 92.48883243 | F163: 13436.3568 | H163: 134.363568 | K163: -134.363568 | L163: LOSS | M163: =IF(COUNTA($F$6:$F$10)=5,(F164-F24)/F24,"") -> 0.3301993229 | N163: 2 | O163: last | W163: =IF(AND(L163="WIN",L164<>"WIN"),SUMIF(L$24:L163,"WIN",K$24:K163)-SUM(W$23:W162),"") ->  | X163: =IF(AND(L163="LOSS",L164<>"LOSS"),SUMIF(L$24:L163,"LOSS",K$24:K163)-SUM(X$23:X162),"") -> -270.0843437
B164: Row 164 (141) | D164: 27.4357984 | F164: 13301.99323 | H164: 133.0199323 | K164: 159.6239187 | L164: WIN | M164: =IF(COUNTA($F$6:$F$10)=5,(F165-F24)/F24,"") -> 0.3461617148 | N164: 1 | O164: new | W164: =IF(AND(L164="WIN",L165<>"WIN"),SUMIF(L$24:L164,"WIN",K$24:K164)-SUM(W$23:W163),"") ->  | X164: =IF(AND(L164="LOSS",L165<>"LOSS"),SUMIF(L$24:L164,"LOSS",K$24:K164)-SUM(X$23:X163),"") -> 
B165: Row 165 (142) | D165: 45.03658524 | F165: 13461.61715 | H165: 134.6161715 | K165: 161.5394058 | L165: WIN | M165: =IF(COUNTA($F$6:$F$10)=5,(F166-F24)/F24,"") -> 0.3623156554 | N165: 2 | O165: last | W165: =IF(AND(L165="WIN",L166<>"WIN"),SUMIF(L$24:L165,"WIN",K$24:K165)-SUM(W$23:W164),"") -> 321.1633245 | X165: =IF(AND(L165="LOSS",L166<>"LOSS"),SUMIF(L$24:L165,"LOSS",K$24:K165)-SUM(X$23:X164),"") -> 
B166: Row 166 (143) | D166: 72.84389142 | F166: 13623.15655 | H166: 136.2315655 | K166: -136.2315655 | L166: LOSS | M166: =IF(COUNTA($F$6:$F$10)=5,(F167-F24)/F24,"") -> 0.3486924988 | N166: 1 | O166: last | W166: =IF(AND(L166="WIN",L167<>"WIN"),SUMIF(L$24:L166,"WIN",K$24:K166)-SUM(W$23:W165),"") ->  | X166: =IF(AND(L166="LOSS",L167<>"LOSS"),SUMIF(L$24:L166,"LOSS",K$24:K166)-SUM(X$23:X165),"") -> -136.2315655
B167: Row 167 (144) | D167: 25.35934657 | F167: 13486.92499 | H167: 134.8692499 | K167: 161.8430999 | L167: WIN | M167: =IF(COUNTA($F$6:$F$10)=5,(F168-F24)/F24,"") -> 0.3648768088 | N167: 1 | O167: new | W167: =IF(AND(L167="WIN",L168<>"WIN"),SUMIF(L$24:L167,"WIN",K$24:K167)-SUM(W$23:W166),"") ->  | X167: =IF(AND(L167="LOSS",L168<>"LOSS"),SUMIF(L$24:L167,"LOSS",K$24:K167)-SUM(X$23:X166),"") -> 
B168: Row 168 (145) | D168: 45.96910259 | F168: 13648.76809 | H168: 136.4876809 | K168: 163.7852171 | L168: WIN | M168: =IF(COUNTA($F$6:$F$10)=5,(F169-F24)/F24,"") -> 0.3812553305 | N168: 2 | O168: last | W168: =IF(AND(L168="WIN",L169<>"WIN"),SUMIF(L$24:L168,"WIN",K$24:K168)-SUM(W$23:W167),"") -> 325.6283169 | X168: =IF(AND(L168="LOSS",L169<>"LOSS"),SUMIF(L$24:L168,"LOSS",K$24:K168)-SUM(X$23:X167),"") -> 
B169: Row 169 (146) | D169: 75.41423723 | F169: 13812.55331 | H169: 138.1255331 | K169: -138.1255331 | L169: LOSS | M169: =IF(COUNTA($F$6:$F$10)=5,(F170-F24)/F24,"") -> 0.3674427772 | N169: 1 | O169: new | W169: =IF(AND(L169="WIN",L170<>"WIN"),SUMIF(L$24:L169,"WIN",K$24:K169)-SUM(W$23:W168),"") ->  | X169: =IF(AND(L169="LOSS",L170<>"LOSS"),SUMIF(L$24:L169,"LOSS",K$24:K169)-SUM(X$23:X168),"") -> 
B170: Row 170 (147) | D170: 57.20221766 | F170: 13674.42777 | H170: 136.7442777 | K170: -136.7442777 | L170: LOSS | M170: =IF(COUNTA($F$6:$F$10)=5,(F171-F24)/F24,"") -> 0.3537683494 | N170: 2 | O170: middle | W170: =IF(AND(L170="WIN",L171<>"WIN"),SUMIF(L$24:L170,"WIN",K$24:K170)-SUM(W$23:W169),"") ->  | X170: =IF(AND(L170="LOSS",L171<>"LOSS"),SUMIF(L$24:L170,"LOSS",K$24:K170)-SUM(X$23:X169),"") -> 
B171: Row 171 (148) | D171: 80.88462321 | F171: 13537.68349 | H171: 135.3768349 | K171: -135.3768349 | L171: LOSS | M171: =IF(COUNTA($F$6:$F$10)=5,(F172-F24)/F24,"") -> 0.3402306659 | N171: 3 | O171: last | W171: =IF(AND(L171="WIN",L172<>"WIN"),SUMIF(L$24:L171,"WIN",K$24:K171)-SUM(W$23:W170),"") ->  | X171: =IF(AND(L171="LOSS",L172<>"LOSS"),SUMIF(L$24:L171,"LOSS",K$24:K171)-SUM(X$23:X170),"") -> -410.2466457
B172: Row 172 (149) | D172: 33.7679472 | F172: 13402.30666 | H172: 134.0230666 | K172: 160.8276799 | L172: WIN | M172: =IF(COUNTA($F$6:$F$10)=5,(F173-F24)/F24,"") -> 0.3563134339 | N172: 1 | O172: new | W172: =IF(AND(L172="WIN",L173<>"WIN"),SUMIF(L$24:L172,"WIN",K$24:K172)-SUM(W$23:W171),"") ->  | X172: =IF(AND(L172="LOSS",L173<>"LOSS"),SUMIF(L$24:L172,"LOSS",K$24:K172)-SUM(X$23:X171),"") -> 
B173: Row 173 (150) | D173: 35.69976247 | F173: 13563.13434 | H173: 135.6313434 | K173: 162.7576121 | L173: WIN | M173: =IF(COUNTA($F$6:$F$10)=5,(F174-F24)/F24,"") -> 0.3725891951 | N173: 2 | O173: middle | W173: =IF(AND(L173="WIN",L174<>"WIN"),SUMIF(L$24:L173,"WIN",K$24:K173)-SUM(W$23:W172),"") ->  | X173: =IF(AND(L173="LOSS",L174<>"LOSS"),SUMIF(L$24:L173,"LOSS",K$24:K173)-SUM(X$23:X172),"") -> 
B174: Row 174 (151) | D174: 10.85567742 | F174: 13725.89195 | H174: 137.2589195 | K174: 164.7107034 | L174: WIN | M174: =IF(COUNTA($F$6:$F$10)=5,(F175-F24)/F24,"") -> 0.3890602655 | N174: 3 | O174: middle | W174: =IF(AND(L174="WIN",L175<>"WIN"),SUMIF(L$24:L174,"WIN",K$24:K174)-SUM(W$23:W173),"") ->  | X174: =IF(AND(L174="LOSS",L175<>"LOSS"),SUMIF(L$24:L174,"LOSS",K$24:K174)-SUM(X$23:X173),"") -> 
B175: Row 175 (152) | D175: 9.116355224 | F175: 13890.60265 | H175: 138.9060265 | K175: 166.6872319 | L175: WIN | M175: =IF(COUNTA($F$6:$F$10)=5,(F176-F24)/F24,"") -> 0.4057289887 | N175: 4 | O175: last | W175: =IF(AND(L175="WIN",L176<>"WIN"),SUMIF(L$24:L175,"WIN",K$24:K175)-SUM(W$23:W174),"") -> 654.9832273 | X175: =IF(AND(L175="LOSS",L176<>"LOSS"),SUMIF(L$24:L175,"LOSS",K$24:K175)-SUM(X$23:X174),"") -> 
B176: Row 176 (153) | D176: 70.17132122 | F176: 14057.28989 | H176: 140.5728989 | K176: -140.5728989 | L176: LOSS | M176: =IF(COUNTA($F$6:$F$10)=5,(F177-F24)/F24,"") -> 0.3916716988 | N176: 1 | O176: new | W176: =IF(AND(L176="WIN",L177<>"WIN"),SUMIF(L$24:L176,"WIN",K$24:K176)-SUM(W$23:W175),"") ->  | X176: =IF(AND(L176="LOSS",L177<>"LOSS"),SUMIF(L$24:L176,"LOSS",K$24:K176)-SUM(X$23:X175),"") -> 
B177: Row 177 (154) | D177: 95.71683286 | F177: 13916.71699 | H177: 139.1671699 | K177: -139.1671699 | L177: LOSS | M177: =IF(COUNTA($F$6:$F$10)=5,(F178-F24)/F24,"") -> 0.3777549818 | N177: 2 | O177: middle | W177: =IF(AND(L177="WIN",L178<>"WIN"),SUMIF(L$24:L177,"WIN",K$24:K177)-SUM(W$23:W176),"") ->  | X177: =IF(AND(L177="LOSS",L178<>"LOSS"),SUMIF(L$24:L177,"LOSS",K$24:K177)-SUM(X$23:X176),"") -> 
B178: Row 178 (155) | D178: 68.58259802 | F178: 13777.54982 | H178: 137.7754982 | K178: -137.7754982 | L178: LOSS | M178: =IF(COUNTA($F$6:$F$10)=5,(F179-F24)/F24,"") -> 0.363977432 | N178: 3 | O178: middle | W178: =IF(AND(L178="WIN",L179<>"WIN"),SUMIF(L$24:L178,"WIN",K$24:K178)-SUM(W$23:W177),"") ->  | X178: =IF(AND(L178="LOSS",L179<>"LOSS"),SUMIF(L$24:L178,"LOSS",K$24:K178)-SUM(X$23:X177),"") -> 
B179: Row 179 (156) | D179: 81.74574591 | F179: 13639.77432 | H179: 136.3977432 | K179: -136.3977432 | L179: LOSS | M179: =IF(COUNTA($F$6:$F$10)=5,(F180-F24)/F24,"") -> 0.3503376576 | N179: 4 | O179: middle | W179: =IF(AND(L179="WIN",L180<>"WIN"),SUMIF(L$24:L179,"WIN",K$24:K179)-SUM(W$23:W178),"") ->  | X179: =IF(AND(L179="LOSS",L180<>"LOSS"),SUMIF(L$24:L179,"LOSS",K$24:K179)-SUM(X$23:X178),"") -> 
B180: Row 180 (157) | D180: 60.04477811 | F180: 13503.37658 | H180: 135.0337658 | K180: -135.0337658 | L180: LOSS | M180: =IF(COUNTA($F$6:$F$10)=5,(F181-F24)/F24,"") -> 0.3368342811 | N180: 5 | O180: last | W180: =IF(AND(L180="WIN",L181<>"WIN"),SUMIF(L$24:L180,"WIN",K$24:K180)-SUM(W$23:W179),"") ->  | X180: =IF(AND(L180="LOSS",L181<>"LOSS"),SUMIF(L$24:L180,"LOSS",K$24:K180)-SUM(X$23:X179),"") -> -688.9470759
B181: Row 181 (158) | D181: 15.67350911 | F181: 13368.34281 | H181: 133.6834281 | K181: 160.4201137 | L181: WIN | M181: =IF(COUNTA($F$6:$F$10)=5,(F182-F24)/F24,"") -> 0.3528762924 | N181: 1 | O181: new | W181: =IF(AND(L181="WIN",L182<>"WIN"),SUMIF(L$24:L181,"WIN",K$24:K181)-SUM(W$23:W180),"") ->  | X181: =IF(AND(L181="LOSS",L182<>"LOSS"),SUMIF(L$24:L181,"LOSS",K$24:K181)-SUM(X$23:X180),"") -> 
B182: Row 182 (159) | D182: 12.45269921 | F182: 13528.76292 | H182: 135.2876292 | K182: 162.3451551 | L182: WIN | M182: =IF(COUNTA($F$6:$F$10)=5,(F183-F24)/F24,"") -> 0.3691108079 | N182: 2 | O182: middle | W182: =IF(AND(L182="WIN",L183<>"WIN"),SUMIF(L$24:L182,"WIN",K$24:K182)-SUM(W$23:W181),"") ->  | X182: =IF(AND(L182="LOSS",L183<>"LOSS"),SUMIF(L$24:L182,"LOSS",K$24:K182)-SUM(X$23:X181),"") -> 
B183: Row 183 (160) | D183: 30.68221636 | F183: 13691.10808 | H183: 136.9110808 | K183: 164.293297 | L183: WIN | M183: =IF(COUNTA($F$6:$F$10)=5,(F184-F24)/F24,"") -> 0.3855401376 | N183: 3 | O183: middle | W183: =IF(AND(L183="WIN",L184<>"WIN"),SUMIF(L$24:L183,"WIN",K$24:K183)-SUM(W$23:W182),"") ->  | X183: =IF(AND(L183="LOSS",L184<>"LOSS"),SUMIF(L$24:L183,"LOSS",K$24:K183)-SUM(X$23:X182),"") -> 
B184: Row 184 (161) | D184: 10.61113071 | F184: 13855.40138 | H184: 138.5540138 | K184: 166.2648165 | L184: WIN | M184: =IF(COUNTA($F$6:$F$10)=5,(F185-F24)/F24,"") -> 0.4021666193 | N184: 4 | O184: middle | W184: =IF(AND(L184="WIN",L185<>"WIN"),SUMIF(L$24:L184,"WIN",K$24:K184)-SUM(W$23:W183),"") ->  | X184: =IF(AND(L184="LOSS",L185<>"LOSS"),SUMIF(L$24:L184,"LOSS",K$24:K184)-SUM(X$23:X183),"") -> 
B185: Row 185 (162) | D185: 6.026651416 | F185: 14021.66619 | H185: 140.2166619 | K185: 168.2599943 | L185: WIN | M185: =IF(COUNTA($F$6:$F$10)=5,(F186-F24)/F24,"") -> 0.4189926187 | N185: 5 | O185: middle | W185: =IF(AND(L185="WIN",L186<>"WIN"),SUMIF(L$24:L185,"WIN",K$24:K185)-SUM(W$23:W184),"") ->  | X185: =IF(AND(L185="LOSS",L186<>"LOSS"),SUMIF(L$24:L185,"LOSS",K$24:K185)-SUM(X$23:X184),"") -> 
B186: Row 186 (163) | D186: 48.42257426 | F186: 14189.92619 | H186: 141.8992619 | K186: 170.2791142 | L186: WIN | M186: =IF(COUNTA($F$6:$F$10)=5,(F187-F24)/F24,"") -> 0.4360205302 | N186: 6 | O186: last | W186: =IF(AND(L186="WIN",L187<>"WIN"),SUMIF(L$24:L186,"WIN",K$24:K186)-SUM(W$23:W185),"") -> 991.8624909 | X186: =IF(AND(L186="LOSS",L187<>"LOSS"),SUMIF(L$24:L186,"LOSS",K$24:K186)-SUM(X$23:X185),"") -> 
B187: Row 187 (164) | D187: 95.03853876 | F187: 14360.2053 | H187: 143.602053 | K187: -143.602053 | L187: LOSS | M187: =IF(COUNTA($F$6:$F$10)=5,(F188-F24)/F24,"") -> 0.4216603249 | N187: 1 | O187: last | W187: =IF(AND(L187="WIN",L188<>"WIN"),SUMIF(L$24:L187,"WIN",K$24:K187)-SUM(W$23:W186),"") ->  | X187: =IF(AND(L187="LOSS",L188<>"LOSS"),SUMIF(L$24:L187,"LOSS",K$24:K187)-SUM(X$23:X186),"") -> -143.602053
B188: Row 188 (165) | D188: 54.13815617 | F188: 14216.60325 | H188: 142.1660325 | K188: 170.599239 | L188: WIN | M188: =IF(COUNTA($F$6:$F$10)=5,(F189-F24)/F24,"") -> 0.4387202487 | N188: 1 | O188: new | W188: =IF(AND(L188="WIN",L189<>"WIN"),SUMIF(L$24:L188,"WIN",K$24:K188)-SUM(W$23:W187),"") ->  | X188: =IF(AND(L188="LOSS",L189<>"LOSS"),SUMIF(L$24:L188,"LOSS",K$24:K188)-SUM(X$23:X187),"") -> 
B189: Row 189 (166) | D189: 48.51634736 | F189: 14387.20249 | H189: 143.8720249 | K189: 172.6464298 | L189: WIN | M189: =IF(COUNTA($F$6:$F$10)=5,(F190-F24)/F24,"") -> 0.4559848917 | N189: 2 | O189: middle | W189: =IF(AND(L189="WIN",L190<>"WIN"),SUMIF(L$24:L189,"WIN",K$24:K189)-SUM(W$23:W188),"") ->  | X189: =IF(AND(L189="LOSS",L190<>"LOSS"),SUMIF(L$24:L189,"LOSS",K$24:K189)-SUM(X$23:X188),"") -> 
B190: Row 190 (167) | D190: 39.73276427 | F190: 14559.84892 | H190: 145.5984892 | K190: 174.718187 | L190: WIN | M190: =IF(COUNTA($F$6:$F$10)=5,(F191-F24)/F24,"") -> 0.4734567104 | N190: 3 | O190: last | W190: =IF(AND(L190="WIN",L191<>"WIN"),SUMIF(L$24:L190,"WIN",K$24:K190)-SUM(W$23:W189),"") -> 517.9638558 | X190: =IF(AND(L190="LOSS",L191<>"LOSS"),SUMIF(L$24:L190,"LOSS",K$24:K190)-SUM(X$23:X189),"") -> 
B191: Row 191 (168) | D191: 87.03506817 | F191: 14734.5671 | H191: 147.345671 | K191: -147.345671 | L191: LOSS | M191: =IF(COUNTA($F$6:$F$10)=5,(F192-F24)/F24,"") -> 0.4587221433 | N191: 1 | O191: new | W191: =IF(AND(L191="WIN",L192<>"WIN"),SUMIF(L$24:L191,"WIN",K$24:K191)-SUM(W$23:W190),"") ->  | X191: =IF(AND(L191="LOSS",L192<>"LOSS"),SUMIF(L$24:L191,"LOSS",K$24:K191)-SUM(X$23:X190),"") -> 
B192: Row 192 (169) | D192: 99.6736473 | F192: 14587.22143 | H192: 145.8722143 | K192: -145.8722143 | L192: LOSS | M192: =IF(COUNTA($F$6:$F$10)=5,(F193-F24)/F24,"") -> 0.4441349219 | N192: 2 | O192: last | W192: =IF(AND(L192="WIN",L193<>"WIN"),SUMIF(L$24:L192,"WIN",K$24:K192)-SUM(W$23:W191),"") ->  | X192: =IF(AND(L192="LOSS",L193<>"LOSS"),SUMIF(L$24:L192,"LOSS",K$24:K192)-SUM(X$23:X191),"") -> -293.2178854
B193: Row 193 (170) | D193: 29.78927358 | F193: 14441.34922 | H193: 144.4134922 | K193: 173.2961906 | L193: WIN | M193: =IF(COUNTA($F$6:$F$10)=5,(F194-F24)/F24,"") -> 0.461464541 | N193: 1 | O193: new | W193: =IF(AND(L193="WIN",L194<>"WIN"),SUMIF(L$24:L193,"WIN",K$24:K193)-SUM(W$23:W192),"") ->  | X193: =IF(AND(L193="LOSS",L194<>"LOSS"),SUMIF(L$24:L193,"LOSS",K$24:K193)-SUM(X$23:X192),"") -> 
B194: Row 194 (171) | D194: 28.51480177 | F194: 14614.64541 | H194: 146.1464541 | K194: 175.3757449 | L194: WIN | M194: =IF(COUNTA($F$6:$F$10)=5,(F195-F24)/F24,"") -> 0.4790021155 | N194: 2 | O194: middle | W194: =IF(AND(L194="WIN",L195<>"WIN"),SUMIF(L$24:L194,"WIN",K$24:K194)-SUM(W$23:W193),"") ->  | X194: =IF(AND(L194="LOSS",L195<>"LOSS"),SUMIF(L$24:L194,"LOSS",K$24:K194)-SUM(X$23:X193),"") -> 
B195: Row 195 (172) | D195: 15.382273 | F195: 14790.02115 | H195: 147.9002115 | K195: 177.4802539 | L195: WIN | M195: =IF(COUNTA($F$6:$F$10)=5,(F196-F24)/F24,"") -> 0.4967501408 | N195: 3 | O195: last | W195: =IF(AND(L195="WIN",L196<>"WIN"),SUMIF(L$24:L195,"WIN",K$24:K195)-SUM(W$23:W194),"") -> 526.1521894 | X195: =IF(AND(L195="LOSS",L196<>"LOSS"),SUMIF(L$24:L195,"LOSS",K$24:K195)-SUM(X$23:X194),"") -> 
B196: Row 196 (173) | D196: 95.50039342 | F196: 14967.50141 | H196: 149.6750141 | K196: -149.6750141 | L196: LOSS | M196: =IF(COUNTA($F$6:$F$10)=5,(F197-F24)/F24,"") -> 0.4817826394 | N196: 1 | O196: new | W196: =IF(AND(L196="WIN",L197<>"WIN"),SUMIF(L$24:L196,"WIN",K$24:K196)-SUM(W$23:W195),"") ->  | X196: =IF(AND(L196="LOSS",L197<>"LOSS"),SUMIF(L$24:L196,"LOSS",K$24:K196)-SUM(X$23:X195),"") -> 
B197: Row 197 (174) | D197: 91.43466694 | F197: 14817.82639 | H197: 148.1782639 | K197: -148.1782639 | L197: LOSS | M197: =IF(COUNTA($F$6:$F$10)=5,(F198-F24)/F24,"") -> 0.466964813 | N197: 2 | O197: middle | W197: =IF(AND(L197="WIN",L198<>"WIN"),SUMIF(L$24:L197,"WIN",K$24:K197)-SUM(W$23:W196),"") ->  | X197: =IF(AND(L197="LOSS",L198<>"LOSS"),SUMIF(L$24:L197,"LOSS",K$24:K197)-SUM(X$23:X196),"") -> 
B198: Row 198 (175) | D198: 86.24826198 | F198: 14669.64813 | H198: 146.6964813 | K198: -146.6964813 | L198: LOSS | M198: =IF(COUNTA($F$6:$F$10)=5,(F199-F24)/F24,"") -> 0.4522951649 | N198: 3 | O198: middle | W198: =IF(AND(L198="WIN",L199<>"WIN"),SUMIF(L$24:L198,"WIN",K$24:K198)-SUM(W$23:W197),"") ->  | X198: =IF(AND(L198="LOSS",L199<>"LOSS"),SUMIF(L$24:L198,"LOSS",K$24:K198)-SUM(X$23:X197),"") -> 
B199: Row 199 (176) | D199: 80.19712162 | F199: 14522.95165 | H199: 145.2295165 | K199: -145.2295165 | L199: LOSS | M199: =IF(COUNTA($F$6:$F$10)=5,(F200-F24)/F24,"") -> 0.4377722133 | N199: 4 | O199: last | W199: =IF(AND(L199="WIN",L200<>"WIN"),SUMIF(L$24:L199,"WIN",K$24:K199)-SUM(W$23:W198),"") ->  | X199: =IF(AND(L199="LOSS",L200<>"LOSS"),SUMIF(L$24:L199,"LOSS",K$24:K199)-SUM(X$23:X198),"") -> -589.7792758
B200: Row 200 (177) | D200: 14.09548429 | F200: 14377.72213 | H200: 143.7772213 | K200: 172.5326656 | L200: WIN | M200: =IF(COUNTA($F$6:$F$10)=5,(F201-F24)/F24,"") -> 0.4550254798 | N200: 1 | O200: last | W200: =IF(AND(L200="WIN",L201<>"WIN"),SUMIF(L$24:L200,"WIN",K$24:K200)-SUM(W$23:W199),"") -> 172.5326656 | X200: =IF(AND(L200="LOSS",L201<>"LOSS"),SUMIF(L$24:L200,"LOSS",K$24:K200)-SUM(X$23:X199),"") -> 
B201: Row 201 (178) | D201: 96.76595611 | F201: 14550.2548 | H201: 145.502548 | K201: -145.502548 | L201: LOSS | M201: =IF(COUNTA($F$6:$F$10)=5,(F202-F24)/F24,"") -> 0.440475225 | N201: 1 | O201: new | W201: =IF(AND(L201="WIN",L202<>"WIN"),SUMIF(L$24:L201,"WIN",K$24:K201)-SUM(W$23:W200),"") ->  | X201: =IF(AND(L201="LOSS",L202<>"LOSS"),SUMIF(L$24:L201,"LOSS",K$24:K201)-SUM(X$23:X200),"") -> 
B202: Row 202 (179) | D202: 75.20091063 | F202: 14404.75225 | H202: 144.0475225 | K202: -144.0475225 | L202: LOSS | M202: =IF(COUNTA($F$6:$F$10)=5,(F203-F24)/F24,"") -> 0.4260704728 | N202: 2 | O202: last | W202: =IF(AND(L202="WIN",L203<>"WIN"),SUMIF(L$24:L202,"WIN",K$24:K202)-SUM(W$23:W201),"") ->  | X202: =IF(AND(L202="LOSS",L203<>"LOSS"),SUMIF(L$24:L202,"LOSS",K$24:K202)-SUM(X$23:X201),"") -> -289.5500705
B203: Row 203 (180) | D203: 30.64201284 | F203: 14260.70473 | H203: 142.6070473 | K203: 171.1284567 | L203: WIN | M203: =IF(COUNTA($F$6:$F$10)=5,(F204-F24)/F24,"") -> 0.4431833184 | N203: 1 | O203: last | W203: =IF(AND(L203="WIN",L204<>"WIN"),SUMIF(L$24:L203,"WIN",K$24:K203)-SUM(W$23:W202),"") -> 171.1284567 | X203: =IF(AND(L203="LOSS",L204<>"LOSS"),SUMIF(L$24:L203,"LOSS",K$24:K203)-SUM(X$23:X202),"") -> 
B204: Row 204 (181) | D204: 70.96364401 | F204: 14431.83318 | H204: 144.3183318 | K204: -144.3183318 | L204: LOSS | M204: =IF(COUNTA($F$6:$F$10)=5,(F205-F24)/F24,"") -> 0.4287514853 | N204: 1 | O204: new | W204: =IF(AND(L204="WIN",L205<>"WIN"),SUMIF(L$24:L204,"WIN",K$24:K204)-SUM(W$23:W203),"") ->  | X204: =IF(AND(L204="LOSS",L205<>"LOSS"),SUMIF(L$24:L204,"LOSS",K$24:K204)-SUM(X$23:X203),"") -> 
B205: Row 205 (182) | D205: 95.26247257 | F205: 14287.51485 | H205: 142.8751485 | K205: -142.8751485 | L205: LOSS | M205: =IF(COUNTA($F$6:$F$10)=5,(F206-F24)/F24,"") -> 0.4144639704 | N205: 2 | O205: last | W205: =IF(AND(L205="WIN",L206<>"WIN"),SUMIF(L$24:L205,"WIN",K$24:K205)-SUM(W$23:W204),"") ->  | X205: =IF(AND(L205="LOSS",L206<>"LOSS"),SUMIF(L$24:L205,"LOSS",K$24:K205)-SUM(X$23:X204),"") -> -287.1934804
B206: Row 206 (183) | D206: 7.524266335 | F206: 14144.6397 | H206: 141.446397 | K206: 169.7356764 | L206: WIN | M206: =IF(COUNTA($F$6:$F$10)=5,(F207-F24)/F24,"") -> 0.431437538 | N206: 1 | O206: new | W206: =IF(AND(L206="WIN",L207<>"WIN"),SUMIF(L$24:L206,"WIN",K$24:K206)-SUM(W$23:W205),"") ->  | X206: =IF(AND(L206="LOSS",L207<>"LOSS"),SUMIF(L$24:L206,"LOSS",K$24:K206)-SUM(X$23:X205),"") -> 
... 318 more rows

Sheet Instruction & Quotations
D2: Quotations | M2: Start Up Page | S2: Instructions - How To | Y2: DayTradingLife.com
D5: "In Order To Win, You Must Expect To Win." | M5: For More Quotations, Please Visit: www.DayTradingLife.com
D6: Richard Bach (1936-, American Author)
D8: Expect Victory And You Make Victory.
D9: Preston Bradley
D11: "Life... It Tends To Respond To Our Outlook, To Shape
D12: Itself To Meet Our Expectations."
D13: Richard M. DeVos
D14: (1926-, American Businessman, Co-Founder Of Amway Corp.)
D16: "Good Is Not Good, When Better Is Expected."
D17: Thomas Fuller (1608-1661, British Clergyman, Author)
D19: "Persistent Prophecy Is A Familiar Way Of Assuring The Event."
D20: George Robert Gissing (1857-1903, British Novelist, Critic, Essayist)
D22: "I Skate To Where The Puck Is Going To Be, Not Where It Is."
D23: Wayne Gretzky (1961-, Canadian Hockey Player)
D25: "Life Is Largely A Matter Of Expectation."
D26: Horace (BC 65-8, Italian Poet)
D28: "When You Expect Things To Happen -- Strangely Enough -- They Do Happen."
D29: John Pierpont Morgan (1837-1913, American Banker, Financier, Art Collector)
D31: "What Is Destructive Is Impatience, Haste, Expecting Too Much Too Fast."
D32: May Sarton (1912-1995, American Poet, Novelist)
D34: "Winner Expects To Win In Advance. Life Is A Self-Fulfilling Prophesy."
D35: Author Unknown
D37: "Whatever We Expect With Confidence Becomes Our Own Self-Fulfilling Prophecy."
D38: Brian Tracy (1944-, Canadian-born American Trainer, Speaker, Author, Businessman)
D39: Author's Website: www.briantracy.com
D41: "Expect The Best, Plan For The Worst, And Prepare To Be Surprised."
D42: Denis Waitley (1933-, American Author, Speaker, Trainer, Peak Performance Expert) | M42: Click Start To Start :-)
D43: Author's Website: www.deniswaitley.com
D46: "I Know Not Anything More Pleasant, Or More Instructive, Than To Compare | T46: Van Tharp's Expectancy
D47: Experience With Expectation, Or To Register From Time To Time The | T47: Long Version: Expectancy? It Is Your Average Win Rate * Average Amount Won – Average Loss Rate * Average Amount Lost = Expectancy, Or; Your Average Expected Profit (Or Loss) Per Trade Taken.
D48: Difference Between Idea And Reality. It Is By This Kind Of Observation
D49: That We Grow Daily Less Liable To Be Disappointed."
D50: Samuel Johnson (1709-1784, British author) | T50: Short Version: "Expectancy Is Simply The Mean Or Average R-Multiple Generated."
D52: EXPECTANCY
D53: "In The Real World Of Investing Or Trading, Expectancy Tells You The Net Profit Or Loss That You Can Expect Over A Large Number Of Single-Unit Trades. If The Total Amount Of Losing Trades Is Greater Than The Total Amount Of Winning Trades, Then You Are A Net Loser & Have A Negative Expectancy. If The Total Amount Of Winning Trades Is Greater Than The Total Amount Of Losing Trades, Then You Are A Net Winner & Have A Positive Expectancy." | T53: Distribution and Reprint Policy
T54: This document maybe be republished & distributed under the proviso that it cannot be altered or amended In Anyway.
T56: DayTradingLife.com Reserve all rights to this effect.
T57: For any futher information please email me at: | Y57: traderdowboy@gmail.com
D58: Dr. Van Tharp (Page 135 - Trade Your Way To Financial Freedom). | T58: Copyright © 2011-2012 - DayTradingLife.com. - All rights reserved.
D59: "A Must Read, A Timeless Classic, By The 'Position Sizing' Master." - Dow-Boy

Sheet Credits
